Workbook

Sheet Свод
A1: № р/м | B1: Наименование структурного подразделения: | C1: Наименование должности/профессии работника: | D1: № Карты идентификации | E1: № Карты ОПР | F1: Средний уровень риска (Rср): | G1: Повышающий коэффициент | H1: Расчётное значение риска | I1: Итоговый уровень риска на рабочем месте | J1: Перечень опасностей (ID)
A2: 1 | B2: Ремонтно-строительное управление | C2: Водитель автомобиля | D2: 0001 | E2: 1.01 | F2: 6.358 | G2: 1 | H2: =F:F*G:G -> 6.358 | I2: умеренный | J2: 3.1. 3.2. 3.6. 3.21. 27.1 9.8. 28.5. 28.1.01. 35.1. 35.2. 35.3 35.4. 35.5. 35.6. 35.7. 7.2. 28.1.02. 28.1.03. 24.1. 27.2.
A3: 2 | B3: Ремонтно-строительное управление | C3: Водитель погрузчика 4 разряд | D3: 0002 | E3: 1.02 | F3: 6.304 | G3: 1 | H3: =F:F*G:G -> 6.304 | I3: умеренный | J3: 3.1. 3.2. 3.6. 27.1 27.8. 27.5 9.4. 9.8. 28.5. 28.1.01. 35.1. 35.2. 35.3 35.4. 35.5. 35.6. 35.7. 7.1. 7.5. 7.4. 7.2. 28.1.02. 28.1.03. 24.1. 27.6.
A4: 3 | B4: Ремонтно-строительное управление | C4: Контролер технического состояния автотранспортных средств | D4: 0003 | E4: 1.03 | F4: 6.279 | G4: 1 | H4: =F:F*G:G -> 6.279 | I4: умеренный | J4: 3.1. 3.2. 3.6. 3.18. 27.1 9.8. 28.5. 28.1.01. 21.1 35.1. 35.2. 35.3 35.4. 35.5. 35.6. 35.7. 7.1. 28.1.02. 28.1.03. 24.1. 27.2.
A5: 4 | B5: Ремонтно-строительное управление | C5: Механик | D5: 0004 | E5: 1.04 | F5: 6.235 | G5: 1.2 | H5: 7.482 | I5: умеренный | J5: 3.1. 3.2. 3.6. 3.18. 3.21. 27.1 9.8. 9.2. 28.5. 28.1.01. 21.1 35.1. 35.2. 35.3 35.4. 35.5. 35.6. 35.7. 7.1. 28.1.02. 28.1.03. 24.1. 27.2.
A6: 5 | B6: Ремонтно-строительное управление | C6: Машинист автовышки и автогидроподъемника 5 разряд | D6: 0005 | E6: 1.05 | F6: 6.206 | G6: 1 | H6: =F:F*G:G -> 6.206 | I6: умеренный | J6: 3.1. 3.2. 3.6. 3.18. 3.21. 27.1 9.8. 28.5. 28.1.01. 35.1. 35.2. 35.3 35.4. 35.5. 35.6. 35.7. 7.1. 7.4. 7.2. 28.1.02. 28.1.03. 24.1. 27.2.
A7: 6 | B7: Ремонтно-строительное управление | C7: Машинист крана автомобильного 7 разряд | D7: 0006 | E7: 1.06 | F7: 6.206 | G7: 1.2 | H7: 7.4472 | I7: умеренный | J7: 3.1. 3.2. 3.6. 3.18. 3.21. 27.1 9.8. 28.5. 28.1.01. 35.1. 35.2. 35.3 35.4. 35.5. 35.6. 35.7. 7.1. 7.4. 7.2. 28.1.02. 28.1.03. 24.1. 27.2.
A8: 7 | B8: Ремонтно-строительное управление | C8: Машинист экскаватора-погрузчика 5 разряд | D8: 0007 | E8: 1.07 | F8: 6.231 | G8: 1 | H8: 6.231 | I8: умеренный | J8: 3.1. 3.2. 3.6. 3.18. 3.21. 27.1 9.8. 9.2. 28.5. 28.1.01. 35.1. 35.2. 35.3 35.4. 35.5. 35.6. 35.7. 7.1. 7.4. 7.2. 28.1.02. 28.1.03. 24.1. 27.2.
A9: 8 | B9: Управление очистных сооружений/Служба технологических работ/Участок №6/Котляково-Коломенское очистное сооружение | C9: Старший оператор очистных сооружений | D9: 0008 | E9: 1.08 | F9: 6.351 | G9: 1 | H9: 6.351 | I9: умеренный | J9: 3.1. 3.2. 3.6. 3.18. 3.21. 27.1 16.4. 16.5 9.8. 9.2. 28.5. 28.1.01. 21.1 29.1. 35.1. 35.2. 35.3 35.4. 35.5. 35.6. 35.7. 7.1. 28.1.02. 28.1.03. 24.1. 24.4. 27.2.
A10: 9 | B10: Управление очистных сооружений/Служба технологических работ/Участок №6/Котляково-Коломенское очистное сооружение | C10: Уборщик производственных и служебных помещений | D10: 0009 | E10: 1.09 | F10: 6.302 | G10: 1 | H10: 6.302 | I10: умеренный | J10: 3.1. 3.2. 3.6. 3.21. 27.1 9.8. 9.3. 28.5. 35.1. 35.2. 35.3 35.4. 35.5. 35.6. 35.7. 7.1. 28.1.02. 28.1.03. 23.1. 24.1. 27.2.
A11: 10 | B11: Управление очистных сооружений/Служба технологических работ/Участок №6/Котляково-Коломенское очистное сооружение | C11: Электромонтер по ремонту и обслуживанию электрооборудования (4, 5 разряда) | D11: 0010 | E11: 1.1 | F11: 6.413 | G11: 1 | H11: 6.413 | I11: умеренный | J11: 3.1. 3.2. 3.6. 3.21. 27.1 27.8. 27.5 27.4. 9.8. 9.2. 28.5. 28.1.01. 21.1 35.1. 35.2. 35.3 35.4. 35.5. 35.6. 35.7. 7.1. 28.1.02. 28.1.03. 23.1. 24.1. 27.2.
A12: 11 | B12: Управление очистных сооружений/Служба автоматизации и диспетчеризации | C12: Инженер-энергетик 1 категории | D12: 0011 | E12: 1.11 | F12: 6.246 | G12: 1 | H12: 6.246 | I12: умеренный | J12: 3.1. 3.2. 3.6. 3.18. 3.21. 27.1 28.5. 28.1.01. 28.8. 35.1. 35.2. 35.3 35.4. 35.5. 35.6. 35.7. 7.1. 28.1.02. 28.1.03. 24.1. 27.2.
A13: 12 | B13: Управление очистных сооружений/Служба по надзору за инженерными системами и технологией производства | C13: Делопроизводитель | D13: 0012 | E13: 1.12 | F13: 6.2 | G13: 1 | H13: 6.2 | I13: умеренный | J13: 3.1. 3.2. 3.6. 3.18. 3.21. 27.1 28.5. 28.1.01. 28.8. 35.1. 35.2. 35.3 35.4. 35.5. 35.6. 35.7. 7.1. 28.1.02. 28.1.03. 24.1. 27.2.
A14: 13 | B14: Управление очистных сооружений/Служба по надзору за инженерными системами и технологией производства | C14: Начальник | D14: 0013 | E14: 1.13 | F14: 6.226 | G14: 1 | H14: 6.226 | I14: умеренный | J14: 3.1. 3.2. 3.6. 3.18. 3.21. 27.1 28.5. 28.1.01. 28.8. 35.1. 35.2. 35.3 35.4. 35.5. 35.6. 35.7. 7.1. 28.1.02. 28.1.03. 24.1. 24.4. 27.2.
A15: 14 | B15: Управление очистных сооружений/Служба по эксплуатации и ремонту зданий очистных сооружений и инженерных систем | C15: Кладовщик | D15: 0014 | E15: 1.14 | F15: 6.169 | G15: 1 | H15: 6.169 | I15: умеренный | J15: 3.1. 3.2. 3.6. 3.18. 3.21. 27.1 28.2. 28.5. 28.1.01. 29.1. 35.1. 35.2. 35.3 35.4. 35.5. 35.6. 35.7. 7.1. 28.1.02. 28.1.03. 24.1. 27.2.
A16: 15 | B16: Управление очистных сооружений/Служба по эксплуатации и ремонту зданий очистных сооружений и инженерных систем | C16: Начальник | D16: 0015 | E16: 1.15 | F16: 6.226 | G16: 1,2 | H16: 7.4712 | I16: умеренный | J16: 3.1. 3.2. 3.6. 3.18. 3.21. 27.1 28.5. 28.1.01. 28.8. 35.1. 35.2. 35.3 35.4. 35.5. 35.6. 35.7. 7.1. 28.1.02. 28.1.03. 24.1. 24.4. 27.2.
A17: 16 | B17: Управление очистных сооружений/Служба по эксплуатации и ремонту зданий очистных сооружений и инженерных систем | C17: Специалист по учету ТМЦ 1 категории | D17: 0016 | E17: 1.16 | F17: 6.2 | G17: 1 | H17: 6.2 | I17: умеренный | J17: 3.1. 3.2. 3.6. 3.18. 3.21. 27.1 28.5. 28.1.01. 28.8. 35.1. 35.2. 35.3 35.4. 35.5. 35.6. 35.7. 7.1. 28.1.02. 28.1.03. 24.1. 27.2.
A18: 17 | B18: Управление очистных сооружений/Служба по эксплуатации и ремонту зданий очистных сооружений и инженерных систем/Отдел по ремонту инженерных систем | C18: Ведущий инженер | D18: 0017 | E18: 1.17 | F18: 6.226 | G18: 1 | H18: 6.226 | I18: умеренный | J18: 3.1. 3.2. 3.6. 3.18. 27.1 28.5. 28.1.01. 28.8. 29.1. 35.1. 35.2. 35.3 35.4. 35.5. 35.6. 35.7. 7.1. 28.1.02. 28.1.03. 24.1. 24.4. 27.2.
A19: 18 | B19: Управление очистных сооружений/Служба по эксплуатации и ремонту зданий очистных сооружений и инженерных систем/Отдел по ремонту инженерных систем | C19: Старший мастер | D19: 0018 | E19: 1.18 | F19: 6.27 | G19: 1,2 | H19: 7.524 | I19: умеренный | J19: 3.1. 3.2. 3.6. 3.17. 3.18. 3.21. 27.1 12.1 28.5. 28.1.01. 28.8. 21.1 29.1. 35.1. 35.2. 35.3 35.4. 35.5. 35.6. 35.7. 7.1. 28.1.02. 28.1.03. 24.1. 24.4. 27.2.
A20: 19 | B20: Управление очистных сооружений/Служба по эксплуатации и ремонту зданий очистных сооружений и инженерных систем/Отдел по ремонту инженерных систем | C20: Слесарь-ремонтник 5 разряд | D20: 0019 | E20: 1.19 | F20: 6.314 | G20: 1,2 | H20: 7.5768 | I20: умеренный | J20: 3.1. 3.2. 3.6. 3.18. 3.21. 27.1 9.8. 28.5. 28.1.01. 21.1 29.1. 35.1. 35.2. 35.3 35.4. 35.5. 35.6. 35.7. 7.1. 28.1.02. 28.1.03. 9.1. 23.1. 24.1. 27.2.
A21: 20 | B21: Управление очистных сооружений/Служба по эксплуатации и ремонту зданий очистных сооружений и инженерных систем/Отдел по ремонту инженерных систем | C21: Электрогазосварщик 5 разряд | D21: 0020 | E21: 1.2 | F21: 6.44 | G21: 1,2 | H21: 7.728 | I21: умеренный | J21: 3.1. 3.2. 3.6. 3.21. 27.1 27.8. 27.5 27.4. 16.3. 9.8. 9.2. 12.1 28.5. 28.1.01. 21.1 29.2. 30.6. 30.7. 30.8. 35.1. 35.2. 35.3 35.4. 35.5. 35.6. 35.7. 7.1. 28.1.02. 28.1.03. 9.1. 9.5. 23.1. 24.1. 27.2.
A22: 21 | B22: Управление очистных сооружений/Служба по эксплуатации и ремонту зданий очистных сооружений и инженерных систем/Отдел по ремонту инженерных систем | C22: Электромонтер по ремонту и обслуживанию электрооборудования 5 разряда | D22: 0021 | E22: 1.21 | F22: 6.413 | G22: 1,2 | H22: 7.6956 | I22: умеренный | J22: 3.1. 3.2. 3.6. 3.21. 27.1 27.8. 27.5 27.4. 9.8. 9.2. 28.5. 28.1.01. 21.1 35.1. 35.2. 35.3 35.4. 35.5. 35.6. 35.7. 7.1. 28.1.02. 28.1.03. 23.1. 24.1. 27.2.
A23: 22 | B23: Управление очистных сооружений/Служба по эксплуатации и ремонту зданий очистных сооружений и инженерных систем/Отдел по ремонту инженерных систем | C23: Слесарь по обслуживанию тепловых пунктов 5 разряд | D23: 0022 | E23: 1.22 | F23: 6.275 | G23: 1 | H23: 6.275 | I23: умеренный | J23: 3.1. 3.2. 3.6. 3.21. 27.1 9.8. 28.5. 28.1.01. 21.1 29.1. 35.1. 35.2. 35.3 35.4. 35.5. 35.6. 35.7. 7.1. 28.1.02. 28.1.03. 9.1. 23.1. 24.1. 27.2.
A24: 23 | B24: Управление очистных сооружений/Служба технологических работ/Участок №6 | C24: Заместитель начальника - начальник Котляково-Коломенского очистного сооружения | D24: 0023 | E24: 1.23 | F24: 6.226 | G24: 1 | H24: 6.226 | I24: умеренный | J24: 3.1. 3.2. 3.6. 3.18. 3.21. 27.1 28.5. 28.1.01. 28.8. 35.1. 35.2. 35.3 35.4. 35.5. 35.6. 35.7. 7.1. 28.1.02. 28.1.03. 24.1. 24.4. 27.2.
A25: 24 | B25: Управление очистных сооружений/Служба технологических работ/Участок №6/Котляково-Коломенское очистное сооружение | C25: Оператор очистных сооружений 3 разряд | D25: 0024 | E25: 1.24 | F25: 6.333 | G25: 1 | H25: 6.333 | I25: умеренный | J25: 3.1. 3.2. 3.6. 3.18. 3.21. 27.1 16.4. 16.5 9.8. 9.2. 28.5. 28.1.01. 21.1 29.1. 35.1. 35.2. 35.3 35.4. 35.5. 35.6. 35.7. 7.1. 28.1.02. 28.1.03. 24.1. 27.2.
A26: 25 | B26: Управление очистных сооружений/Служба технологических работ/Участок №6/Котляково-Коломенское очистное сооружение | C26: Слесарь аварийно-восстановительных работ 4 разряда | D26: 0025 | E26: 1.25 | F26: 6.387 | G26: 1,2 | H26: 7.6644 | I26: умеренный | J26: 3.1. 3.3. 3.2. 3.6. 3.7. 3.8. 22.1 3.17. 3.18. 3.21. 27.1 16.3. 16.4. 16.5 9.8. 9.2. 28.2. 28.4. 28.5. 28.1.01. 21.1 29.1. 35.1. 35.2. 35.3 35.4. 35.5. 35.6. 35.7. 7.1. 28.1.02. 28.1.03. 3.4. 9.1. 23.1. 24.1. 27.2.
A27: 26 | B27: Эксплуатационный гидротехнический район 2 | C27: Водитель автомобиля | D27: 0026 | E27: 2.01 | F27: 6.358 | G27: 1.2 | H27: 7.6296 | I27: умеренный | J27: 3.1. 3.2. 3.6. 3.21. 27.1 9.8. 28.5. 28.1.01. 35.1. 35.2. 35.3 35.4. 35.5. 35.6. 35.7. 7.2. 28.1.02. 28.1.03. 24.1. 27.2.
A28: 27 | B28: Эксплуатационный гидротехнический район 2 | C28: Водитель погрузчика 4 разряда | D28: 0027 | E28: 2.02 | F28: 6.309 | G28: 1 | H28: 6.309 | I28: умеренный | J28: 3.1. 3.2. 3.6. 3.21. 27.1 9.8. 28.5. 28.1.01. 21.2 35.1. 35.2. 35.3 35.4. 35.5. 35.6. 35.7. 7.2. 28.1.02. 28.1.03. 24.1. 27.2.
A29: 28 | B29: Эксплуатационный гидротехнический район 2 | C29: Делопроизводитель | D29: 0028 | E29: 2.03 | F29: 6.2 | G29: 1 | H29: 6.2 | I29: умеренный | J29: 3.1. 3.2. 3.6. 3.18. 3.21. 27.1 28.5. 28.1.01. 28.8. 35.1. 35.2. 35.3 35.4. 35.5. 35.6. 35.7. 7.1. 28.1.02. 28.1.03. 24.1. 27.2.
A30: 29 | B30: Эксплуатационный гидротехнический район 2 | C30: Диспетчер | D30: 0029 | E30: 2.04 | F30: 6.2 | G30: 1 | H30: 6.2 | I30: умеренный | J30: 3.1. 3.2. 3.6. 3.18. 3.21. 27.1 28.5. 28.1.01. 28.8. 35.1. 35.2. 35.3 35.4. 35.5. 35.6. 35.7. 7.1. 28.1.02. 28.1.03. 24.1. 27.2.
A31: 30 | B31: Эксплуатационный гидротехнический район 2 | C31: Кладовщик | D31: 0030 | E31: 2.05 | F31: 6.169 | G31: 1 | H31: 6.169 | I31: умеренный | J31: 3.1. 3.2. 3.6. 3.18. 3.21. 27.1 28.2. 28.5. 28.1.01. 29.1. 35.1. 35.2. 35.3 35.4. 35.5. 35.6. 35.7. 7.1. 28.1.02. 28.1.03. 24.1. 27.2.
A32: 31 | B32: Эксплуатационный гидротехнический район 2 | C32: Контролер технического состояния автотранспортных средств | D32: 0031 | E32: 2.06 | F32: 6.279 | G32: 1 | H32: 6.279 | I32: умеренный | J32: 3.1. 3.2. 3.6. 3.18. 27.1 9.8. 28.5. 28.1.01. 21.1 35.1. 35.2. 35.3 35.4. 35.5. 35.6. 35.7. 7.1. 28.1.02. 28.1.03. 24.1. 27.2.
A33: 32 | B33: Эксплуатационный гидротехнический район 2 | C33: Мастер | D33: 0032 | E33: 2.07 | F33: 6.361 | G33: 1 | H33: 6.361 | I33: умеренный | J33: 3.1. 3.2. 3.6. 3.18. 3.21. 27.1 12.1 28.5. 28.1.01. 21.1 29.1. 35.1. 35.2. 35.3 35.4. 35.5. 35.6. 35.7. 7.1. 28.1.02. 28.1.03. 24.1. 27.2.
A34: 33 | B34: Эксплуатационный гидротехнический район 2 | C34: Мастер АВР | D34: 0033 | E34: 2.08 | F34: 6.361 | G34: 1 | H34: 6.361 | I34: умеренный | J34: 3.1. 3.2. 3.6. 3.18. 3.21. 27.1 12.1 28.5. 28.1.01. 21.1 29.1. 35.1. 35.2. 35.3 35.4. 35.5. 35.6. 35.7. 7.1. 28.1.02. 28.1.03. 24.1. 27.2.
A35: 34 | B35: Эксплуатационный гидротехнический район 2 | C35: Механик | D35: 0034 | E35: 2.09 | F35: 6.235 | G35: 1 | H35: 6.235 | I35: умеренный | J35: 3.1. 3.2. 3.6. 3.18. 3.21. 27.1 9.8. 9.2. 28.5. 28.1.01. 21.1 35.1. 35.2. 35.3 35.4. 35.5. 35.6. 35.7. 7.1. 28.1.02. 28.1.03. 24.1. 27.2.
A36: 35 | B36: Эксплуатационный гидротехнический район 2 | C36: Начальник смены | D36: 0035 | E36: 2.1 | F36: 6.226 | G36: 1 | H36: 6.226 | I36: умеренный | J36: 3.1. 3.2. 3.6. 3.18. 3.21. 27.1 28.5. 28.1.01. 28.8. 35.1. 35.2. 35.3 35.4. 35.5. 35.6. 35.7. 7.1. 28.1.02. 28.1.03. 24.1. 24.4. 27.2.
A37: 36 | B37: Эксплуатационный гидротехнический район 2 | C37: Обходчик водопроводно-канализационной сети 4 разряда | D37: 0036 | E37: 2.11 | F37: 6.219 | G37: 1 | H37: 6.219 | I37: умеренный | J37: 3.1. 3.2. 3.6. 3.18. 3.21. 27.1 16.3. 16.4. 28.5. 28.1.01. 35.1. 35.2. 35.3 35.4. 35.5. 35.6. 35.7. 7.1. 28.1.02. 28.1.03. 24.1. 27.2.
A38: 37 | B38: Эксплуатационный гидротехнический район 2 | C38: Техник | D38: 0037 | E38: 3.01 | F38: 6.2 | G38: 1 | H38: 6.2 | I38: умеренный | J38: 3.1. 3.2. 3.6. 3.18. 3.21. 27.1 28.5. 28.1.01. 28.8. 35.1. 35.2. 35.3 35.4. 35.5. 35.6. 35.7. 7.1. 28.1.02. 28.1.03. 24.1. 27.2.
A39: 38 | B39: Эксплуатационный гидротехнический район 2 | C39: Уборщик производственных и служебных помещений | D39: 0038 | E39: 3.02 | F39: 6.302 | G39: 1 | H39: 6.302 | I39: умеренный | J39: 3.1. 3.2. 3.6. 3.21. 27.1 9.8. 9.3. 28.5. 35.1. 35.2. 35.3 35.4. 35.5. 35.6. 35.7. 7.1. 28.1.02. 28.1.03. 23.1. 24.1. 27.2.
A40: 39 | B40: Управление очистных сооружений/Служба технологических работ/Участок №2 | C40: Оператор насосных станций 1 разряд | D40: 0039 | E40: 4.01 | F40: 6.258 | G40: 1 | H40: 6.258 | I40: умеренный | J40: 3.1. 3.2. 3.6. 3.18. 3.21. 27.1 28.5. 28.1.01. 21.1 35.1. 35.2. 35.3 35.4. 35.5. 35.6. 35.7. 7.1. 28.1.02. 28.1.03. 24.1. 27.2.
A41: 40 | B41: Ремонтно-строительное управление/Производственно-технический отдел | C41: Кладовщик | D41: 0040 | E41: 5.01 | F41: 6.169 | G41: 1 | H41: 6.169 | I41: умеренный | J41: 3.1. 3.2. 3.6. 3.18. 3.21. 27.1 28.2. 28.5. 28.1.01. 29.1. 35.1. 35.2. 35.3 35.4. 35.5. 35.6. 35.7. 7.1. 28.1.02. 28.1.03. 24.1. 27.2.
A42: 41 | B42: Ремонтно-строительное управление/Участок асфальтировочных работ | C42: Асфальтобетонщик (4, 5 разряд) | D42: 0041 | E42: 5.02 | F42: 6.396 | G42: 1 | H42: 6.396 | I42: умеренный | J42: 3.1. 3.2. 3.6. 3.17. 3.18. 3.21. 27.1 13.1 13.10. 16.4. 9.8. 12.1 28.5. 28.1.01. 20.1 21.1 21.2 29.1. 35.1. 35.2. 35.3 35.4. 35.5. 35.6. 35.7. 7.1. 7.2. 28.1.02. 28.1.03. 8.1. 9.5. 24.1. 27.2.
A43: 42 | B43: Ремонтно-строительное управление/Участок асфальтировочных работ | C43: Мастер АВР | D43: 0042 | E43: 5.03 | F43: 6.361 | G43: 1 | H43: 6.361 | I43: умеренный | J43: 3.1. 3.2. 3.6. 3.18. 3.21. 27.1 12.1 28.5. 28.1.01. 21.1 29.1. 35.1. 35.2. 35.3 35.4. 35.5. 35.6. 35.7. 7.1. 28.1.02. 28.1.03. 24.1. 27.2.
A44: 43 | B44: Ремонтно-строительное управление/Участок асфальтировочных работ | C44: Старший мастер АВР | D44: 0043 | E44: 5.04 | F44: 6.361 | G44: 1 | H44: 6.361 | I44: умеренный | J44: 3.1. 3.2. 3.6. 3.18. 3.21. 27.1 12.1 28.5. 28.1.01. 21.1 29.1. 35.1. 35.2. 35.3 35.4. 35.5. 35.6. 35.7. 7.1. 28.1.02. 28.1.03. 24.1. 27.2.
A45: 44 | B45: Ремонтно-строительное управление/Участок общестроительных работ | C45: Газосварщик 5 разряд | D45: 0044 | E45: 5.05 | F45: 6.381 | G45: 1,2 | H45: 7.6572 | I45: умеренный | J45: 3.1. 3.2. 3.6. 3.18. 3.21. 27.1 13.1 13.10. 16.3. 9.8. 12.1 28.5. 28.1.01. 21.1 30.6. 30.7. 30.8. 35.1. 35.2. 35.3 35.4. 35.5. 35.6. 35.7. 7.1. 28.1.02. 28.1.03. 24.1. 27.2.
A46: 45 | B46: Ремонтно-строительное управление/Участок общестроительных работ | C46: Каменщик 5 разряд | D46: 0045 | E46: 5.06 | F46: 6.333 | G46: 1 | H46: 6.333 | I46: умеренный | J46: 3.1. 3.2. 3.6. 3.18. 3.21. 27.1 13.10. 12.1 28.5. 28.1.01. 21.1 35.1. 35.2. 35.3 35.4. 35.5. 35.6. 35.7. 7.1. 28.1.02. 28.1.03. 24.1. 27.2.
A47: 46 | B47: Ремонтно-строительное управление/Участок общестроительных работ | C47: Кровельщик по стальным кровлям 5 разряд | D47: 0046 | E47: 5.07 | F47: 6.353 | G47: 1 | H47: 6.353 | I47: умеренный | J47: 3.1. 3.2. 3.6. 3.18. 3.21. 27.1 13.10. 12.1 28.5. 28.1.01. 21.1 33.3. 35.1. 35.2. 35.3 35.4. 35.5. 35.6. 35.7. 7.1. 28.1.02. 28.1.03. 24.1. 27.2.
A48: 47 | B48: Ремонтно-строительное управление/Участок общестроительных работ | C48: Маляр строительный 5 разряд | D48: 0047 | E48: 5.08 | F48: 6.313 | G48: 1.4 | H48: 8.8382 | I48: умеренный | J48: 3.1. 3.2. 3.6. 3.18. 3.21. 27.1 9.8. 28.4. 28.5. 28.1.01. 21.1 35.1. 35.2. 35.3 35.4. 35.5. 35.6. 35.7. 7.1. 28.1.02. 28.1.03. 24.1. 27.2.
A49: 48 | B49: Ремонтно-строительное управление/Участок общестроительных работ | C49: Начальник | D49: 0048 | E49: 5.09 | F49: 6.226 | G49: 1 | H49: 6.226 | I49: умеренный | J49: 3.1. 3.2. 3.6. 3.18. 3.21. 27.1 28.5. 28.1.01. 28.8. 35.1. 35.2. 35.3 35.4. 35.5. 35.6. 35.7. 7.1. 28.1.02. 28.1.03. 24.1. 24.4. 27.2.
A50: 49 | B50: Ремонтно-строительное управление/Участок общестроительных работ | C50: Облицовщик-плиточник 5 разряд | D50: 0049 | E50: 5.1 | F50: 6.29 | G50: 1 | H50: 6.29 | I50: умеренный | J50: 3.1. 3.2. 3.6. 3.18. 3.21. 27.1 12.1 28.5. 28.1.01. 21.1 35.1. 35.2. 35.3 35.4. 35.5. 35.6. 35.7. 7.1. 28.1.02. 28.1.03. 24.1. 27.2.
A51: 50 | B51: Ремонтно-строительное управление/Участок общестроительных работ | C51: Плотник 5 разряд | D51: 0050 | E51: 5.11 | F51: 6.311 | G51: 1 | H51: 6.311 | I51: умеренный | J51: 3.1. 3.2. 3.6. 3.18. 3.21. 27.1 12.1 28.5. 28.1.01. 21.1 35.1. 35.2. 35.3 35.4. 35.5. 35.6. 35.7. 7.1. 28.1.02. 28.1.03. 24.1. 27.2.
A52: 51 | B52: Ремонтно-строительное управление/Участок общестроительных работ | C52: Прораб | D52: 0051 | E52: 5.12 | F52: 6.226 | G52: 1 | H52: 6.226 | I52: умеренный | J52: 3.1. 3.2. 3.6. 3.18. 3.21. 27.1 28.5. 28.1.01. 28.8. 35.1. 35.2. 35.3 35.4. 35.5. 35.6. 35.7. 7.1. 28.1.02. 28.1.03. 24.1. 24.4. 27.2.
A53: 52 | B53: Ремонтно-строительное управление/Участок общестроительных работ | C53: Слесарь строительный 5 разряд | D53: 0052 | E53: 5.13 | F53: 6.358 | G53: 1 | H53: 6.358 | I53: умеренный | J53: 3.1. 3.2. 3.6. 3.7. 3.8. 22.1 3.17. 3.18. 3.21. 27.1 28.4. 28.5. 28.1.01. 21.1 29.1. 35.1. 35.2. 35.3 35.4. 35.5. 35.6. 35.7. 7.1. 28.1.02. 28.1.03. 24.1. 27.2.
A54: 53 | B54: Ремонтно-строительное управление/Участок общестроительных работ | C54: Слесарь-сантехник 5 разряд | D54: 0053 | E54: 5.14 | F54: 6.358 | G54: 1 | H54: 6.358 | I54: умеренный | J54: 3.1. 3.2. 3.6. 3.7. 3.8. 3.17. 3.18. 3.21. 27.1 28.4. 28.5. 28.1.01. 21.1 29.1. 35.1. 35.2. 35.3 35.4. 35.5. 35.6. 35.7. 7.1. 28.1.02. 28.1.03. 3.4. 24.1. 27.2.
A55: 54 | B55: Ремонтно-строительное управление/Участок общестроительных работ | C55: Столяр строительный 5 разряд | D55: 0054 | E55: 5.15 | F55: 6.358 | G55: 1 | H55: 6.358 | I55: умеренный | J55: 3.1. 3.2. 3.6. 3.7. 3.8. 22.1 3.17. 3.18. 3.21. 27.1 28.4. 28.5. 28.1.01. 21.1 29.1. 35.1. 35.2. 35.3 35.4. 35.5. 35.6. 35.7. 7.1. 28.1.02. 28.1.03. 24.1. 27.2.
A56: 55 | B56: Ремонтно-строительное управление/Участок общестроительных работ | C56: Штукатур 5 разряд | D56: 0055 | E56: 5.16 | F56: 6.313 | G56: 1 | H56: 6.313 | I56: умеренный | J56: 3.1. 3.2. 3.6. 3.18. 3.21. 27.1 9.8. 28.4. 28.5. 28.1.01. 21.1 35.1. 35.2. 35.3 35.4. 35.5. 35.6. 35.7. 7.1. 28.1.02. 28.1.03. 24.1. 27.2.
A57: 56 | B57: Ремонтно-строительное управление/Участок общестроительных работ | C57: Электромонтер по ремонту и обслуживанию электрооборудования 5 разряда | D57: 0056 | E57: 5.17 | F57: 6.413 | G57: 1 | H57: 6.413 | I57: умеренный | J57: 3.1. 3.2. 3.6. 3.21. 27.1 27.8. 27.5 27.4. 9.8. 9.2. 28.5. 28.1.01. 21.1 35.1. 35.2. 35.3 35.4. 35.5. 35.6. 35.7. 7.1. 28.1.02. 28.1.03. 23.1. 24.1. 27.2.
A58: 57 | B58: Строительно-монтажное управление/Оперативно-диспетчерский отдел | C58: Кладовщик | D58: 0057 | E58: 5.18 | F58: 6.169 | G58: 1 | H58: 6.169 | I58: умеренный | J58: 3.1. 3.2. 3.6. 3.18. 3.21. 27.1 28.2. 28.5. 28.1.01. 29.1. 35.1. 35.2. 35.3 35.4. 35.5. 35.6. 35.7. 7.1. 28.1.02. 28.1.03. 24.1. 27.2.
A59: 58 | B59: Строительно-монтажное управление/Участок строительных работ №1 | C59: Монтажник наружных трубопроводов 5 разряд | D59: 0058 | E59: 5.19 | F59: 6.378 | G59: 1.2 | H59: 7.6536 | I59: умеренный | J59: 3.1. 3.2. 3.6. 3.7. 22.1 3.17. 3.18. 3.21. 27.1 28.4. 28.5. 28.1.01. 21.1 29.1. 35.1. 35.2. 35.3 35.4. 35.5. 35.6. 35.7. 7.1. 28.1.02. 28.1.03. 24.1. 27.2.
A60: 59 | B60: Строительно-монтажное управление/Участок строительных работ №1 | C60: Начальник | D60: 0059 | E60: 5.2 | F60: 6.226 | G60: 1 | H60: 6.226 | I60: умеренный | J60: 3.1. 3.2. 3.6. 3.18. 3.21. 27.1 28.5. 28.1.01. 28.8. 35.1. 35.2. 35.3 35.4. 35.5. 35.6. 35.7. 7.1. 28.1.02. 28.1.03. 24.1. 24.4. 27.2.
A61: 60 | B61: Строительно-монтажное управление/Участок строительных работ №1 | C61: Прораб | D61: 0060 | E61: 5.21 | F61: 6.226 | G61: 1 | H61: 6.226 | I61: умеренный | J61: 3.1. 3.2. 3.6. 3.18. 3.21. 27.1 28.5. 28.1.01. 28.8. 35.1. 35.2. 35.3 35.4. 35.5. 35.6. 35.7. 7.1. 28.1.02. 28.1.03. 24.1. 24.4. 27.2.
A62: 61 | B62: Строительно-монтажное управление/Участок строительных работ №1 | C62: Сторож | D62: 0061 | E62: 5.22 | F62: 6.152 | G62: 1 | H62: 6.152 | I62: умеренный | J62: 3.1. 3.2. 3.6. 3.18. 3.21. 27.1 28.2. 28.5. 28.1.01. 29.1. 35.1. 35.2. 35.3 35.4. 35.5. 35.6. 35.7. 7.1. 28.1.02. 28.1.03. 24.1. 27.2.
A63: 62 | B63: Строительно-монтажное управление/Участок строительных работ №1 | C63: Техник | D63: 0062 | E63: 5.23 | F63: 6.2 | G63: 1 | H63: 6.2 | I63: умеренный | J63: 3.1. 3.2. 3.6. 3.18. 3.21. 27.1 28.5. 28.1.01. 28.8. 35.1. 35.2. 35.3 35.4. 35.5. 35.6. 35.7. 7.1. 28.1.02. 28.1.03. 24.1. 27.2.
A64: 63 | B64: Строительно-монтажное управление/Участок строительных работ №1 | C64: Электросварщик ручной сварки 5 разряда | D64: 0063 | E64: 5.24 | F64: 6.373 | G64: 1,2 | H64: 7.6476 | I64: умеренный | J64: 3.1. 3.2. 3.6. 3.18. 3.21. 27.1 13.1 13.10. 16.3. 12.1 12.3. 28.5. 28.1.01. 21.1 30.6. 30.7. 30.8. 35.1. 35.2. 35.3 35.4. 35.5. 35.6. 35.7. 7.1. 28.1.02. 28.1.03. 24.1. 27.2.
A65: 64 | B65: Техническое управление/Отдел телеинспекции трубопроводов | C65: Главный специалист | D65: 0064 | E65: 5.25 | F65: 6.2 | G65: 1 | H65: 6.2 | I65: умеренный | J65: 3.1. 3.2. 3.6. 3.18. 3.21. 27.1 28.5. 28.1.01. 28.8. 35.1. 35.2. 35.3 35.4. 35.5. 35.6. 35.7. 7.1. 28.1.02. 28.1.03. 24.1. 27.2.
A66: 65 | B66: Техническое управление/Отдел технического надзора и приемки | C66: Заместитель начальника | D66: 0065 | E66: 5.26 | F66: 6.226 | G66: 1 | H66: 6.226 | I66: умеренный | J66: 3.1. 3.2. 3.6. 3.18. 3.21. 27.1 28.5. 28.1.01. 28.8. 35.1. 35.2. 35.3 35.4. 35.5. 35.6. 35.7. 7.1. 28.1.02. 28.1.03. 24.1. 24.4. 27.2.
A67: 66 | B67: Техническое управление/Отдел технического надзора и приемки | C67: Кладовщик | D67: 0066 | E67: 5.27 | F67: 6.169 | G67: 1,2 | H67: 7.4028 | I67: умеренный | J67: 3.1. 3.2. 3.6. 3.18. 3.21. 27.1 28.2. 28.5. 28.1.01. 29.1. 35.1. 35.2. 35.3 35.4. 35.5. 35.6. 35.7. 7.1. 28.1.02. 28.1.03. 24.1. 27.2.
A68: 67 | B68: Техническое управление/Отдел технического надзора и приемки | C68: Механик | D68: 0067 | E68: 5.28 | F68: 6.235 | G68: 1 | H68: 6.235 | I68: умеренный | J68: 3.1. 3.2. 3.6. 3.18. 3.21. 27.1 9.8. 9.2. 28.5. 28.1.01. 21.1 35.1. 35.2. 35.3 35.4. 35.5. 35.6. 35.7. 7.1. 28.1.02. 28.1.03. 24.1. 27.2.
A69: 68 | B69: Техническое управление/Отдел технического надзора и приемки | C69: Начальник | D69: 0068 | E69: 5.29 | F69: 6.226 | G69: 1 | H69: 6.226 | I69: умеренный | J69: 3.1. 3.2. 3.6. 3.18. 3.21. 27.1 28.5. 28.1.01. 28.8. 35.1. 35.2. 35.3 35.4. 35.5. 35.6. 35.7. 7.1. 28.1.02. 28.1.03. 24.1. 24.4. 27.2.
A70: 69 | B70: Техническое управление/Отдел технического надзора и приемки | C70: Уборщик производственных и служебных помещений | D70: 0069 | E70: 5.3 | F70: 6.302 | G70: 1 | H70: =F:F*G:G -> 6.302 | I70: умеренный | J70: 3.1. 3.2. 3.6. 3.21. 27.1 9.8. 9.3. 28.5. 35.1. 35.2. 35.3 35.4. 35.5. 35.6. 35.7. 7.1. 28.1.02. 28.1.03. 23.1. 24.1. 27.2.
A71: 70 | B71: Техническое управление/Отдел технического надзора и приемки/Группа линейных работ | C71: Ведущий инженер | D71: 0070 | E71: 5.31 | F71: 6.2 | G71: 1 | H71: 6.2 | I71: умеренный | J71: 3.1. 3.2. 3.6. 3.18. 3.21. 27.1 28.5. 28.1.01. 28.8. 35.1. 35.2. 35.3 35.4. 35.5. 35.6. 35.7. 7.1. 28.1.02. 28.1.03. 24.1. 27.2.
A72: 71 | B72: Техническое управление/Отдел технического надзора и приемки/Группа линейных работ | C72: Инженер 1 категории | D72: 0071 | E72: 5.32 | F72: 6.2 | G72: 1 | H72: 6.2 | I72: умеренный | J72: 3.1. 3.2. 3.6. 3.18. 3.21. 27.1 28.5. 28.1.01. 28.8. 35.1. 35.2. 35.3 35.4. 35.5. 35.6. 35.7. 7.1. 28.1.02. 28.1.03. 24.1. 27.2.
A73: 72 | B73: Техническое управление/Отдел технического надзора и приемки/Группа линейных работ | C73: Руководитель группы | D73: 0072 | E73: 5.33 | F73: 6.226 | G73: 1 | H73: 6.226 | I73: умеренный | J73: 3.1. 3.2. 3.6. 3.18. 3.21. 27.1 28.5. 28.1.01. 28.8. 35.1. 35.2. 35.3 35.4. 35.5. 35.6. 35.7. 7.1. 28.1.02. 28.1.03. 24.1. 24.4. 27.2.
A74: 73 | B74: Техническое управление/Отдел технического надзора и приемки/Группа линейных работ | C74: Слесарь аварийно-восстановительных работ 5 разряда | D74: 0073 | E74: 5.34 | F74: 6.387 | G74: 1 | H74: 6.387 | I74: умеренный | J74: 3.1. 3.3. 3.2. 3.6. 3.7. 3.8. 22.1 3.17. 3.18. 3.21. 27.1 16.3. 16.4. 16.5 9.8. 9.2. 28.2. 28.4. 28.5. 28.1.01. 21.1 29.1. 35.1. 35.2. 35.3 35.4. 35.5. 35.6. 35.7. 7.1. 28.1.02. 28.1.03. 3.4. 9.1. 23.1. 24.1. 27.2.
A75: 74 | B75: Техническое управление/Отдел технического надзора и приемки/Группа приемки | C75: Ведущий инженер | D75: 0074 | E75: 5.35 | F75: 6.2 | G75: 1 | H75: 6.2 | I75: умеренный | J75: 3.1. 3.2. 3.6. 3.18. 3.21. 27.1 28.5. 28.1.01. 28.8. 35.1. 35.2. 35.3 35.4. 35.5. 35.6. 35.7. 7.1. 28.1.02. 28.1.03. 24.1. 27.2.
A76: 75 | B76: Техническое управление/Отдел технического надзора и приемки/Группа приемки | C76: Главный специалист | D76: 0075 | E76: 5.36 | F76: 6.2 | G76: 1 | H76: 6.2 | I76: умеренный | J76: 3.1. 3.2. 3.6. 3.18. 3.21. 27.1 28.5. 28.1.01. 28.8. 35.1. 35.2. 35.3 35.4. 35.5. 35.6. 35.7. 7.1. 28.1.02. 28.1.03. 24.1. 27.2.
A77: 76 | B77: Техническое управление/Отдел технического надзора и приемки/Группа приемки | C77: Инженер 1 категории | D77: 0076 | E77: 5.37 | F77: 6.2 | G77: 1 | H77: 6.2 | I77: умеренный | J77: 3.1. 3.2. 3.6. 3.18. 3.21. 27.1 28.5. 28.1.01. 28.8. 35.1. 35.2. 35.3 35.4. 35.5. 35.6. 35.7. 7.1. 28.1.02. 28.1.03. 24.1. 27.2.
A78: 77 | B78: Техническое управление/Отдел технического надзора и приемки/Группа приемки | C78: Руководитель группы | D78: 0077 | E78: 5.38 | F78: 6.226 | G78: 1 | H78: 6.226 | I78: умеренный | J78: 3.1. 3.2. 3.6. 3.18. 3.21. 27.1 28.5. 28.1.01. 28.8. 35.1. 35.2. 35.3 35.4. 35.5. 35.6. 35.7. 7.1. 28.1.02. 28.1.03. 24.1. 24.4. 27.2.
A79: 78 | B79: Техническое управление/Отдел технического надзора и приемки/Группа сметно-договорных работ | C79: Ведущий инженер | D79: 0078 | E79: 5.39 | F79: 6.226 | G79: 1 | H79: 6.226 | I79: умеренный | J79: 3.1. 3.2. 3.6. 3.18. 27.1 28.5. 28.1.01. 28.8. 29.1. 35.1. 35.2. 35.3 35.4. 35.5. 35.6. 35.7. 7.1. 28.1.02. 28.1.03. 24.1. 24.4. 27.2.
A80: 79 | B80: Техническое управление/Отдел технического надзора и приемки/Группа сметно-договорных работ | C80: Инженер 1 категории | D80: 0079 | E80: 5.4 | F80: 6.2 | G80: 1 | H80: 6.2 | I80: умеренный | J80: 3.1. 3.2. 3.6. 3.18. 3.21. 27.1 28.5. 28.1.01. 28.8. 35.1. 35.2. 35.3 35.4. 35.5. 35.6. 35.7. 7.1. 28.1.02. 28.1.03. 24.1. 27.2.
A81: 80 | B81: Техническое управление/Отдел технического надзора и приемки/Группа сметно-договорных работ | C81: Руководитель группы | D81: 0080 | E81: 5.41 | F81: 6.226 | G81: 1 | H81: 6.226 | I81: умеренный | J81: 3.1. 3.2. 3.6. 3.18. 3.21. 27.1 28.5. 28.1.01. 28.8. 35.1. 35.2. 35.3 35.4. 35.5. 35.6. 35.7. 7.1. 28.1.02. 28.1.03. 24.1. 24.4. 27.2.
A82: 81 | B82: Техническое управление/Отдел технического надзора и приемки/Группа технического надзора | C82: Ведущий инженер | D82: 0081 | E82: 5.42 | F82: 6.226 | G82: 1 | H82: 6.226 | I82: умеренный | J82: 3.1. 3.2. 3.6. 3.18. 27.1 28.5. 28.1.01. 28.8. 29.1. 35.1. 35.2. 35.3 35.4. 35.5. 35.6. 35.7. 7.1. 28.1.02. 28.1.03. 24.1. 24.4. 27.2.
A83: 82 | B83: Техническое управление/Отдел технического надзора и приемки/Группа технического надзора | C83: Главный специалист | D83: 0082 | E83: 5.43 | F83: 6.2 | G83: 1 | H83: 6.2 | I83: умеренный | J83: 3.1. 3.2. 3.6. 3.18. 3.21. 27.1 28.5. 28.1.01. 28.8. 35.1. 35.2. 35.3 35.4. 35.5. 35.6. 35.7. 7.1. 28.1.02. 28.1.03. 24.1. 27.2.
A84: 83 | B84: Техническое управление/Отдел технического надзора и приемки/Группа технического надзора | C84: Инженер 1 категории | D84: 0083 | E84: 5.44 | F84: 6.2 | G84: 1 | H84: 6.2 | I84: умеренный | J84: 3.1. 3.2. 3.6. 3.18. 3.21. 27.1 28.5. 28.1.01. 28.8. 35.1. 35.2. 35.3 35.4. 35.5. 35.6. 35.7. 7.1. 28.1.02. 28.1.03. 24.1. 27.2.
A85: 84 | B85: Управление материально-технического снабжения/Центральный склад | C85: Заведующий складом | D85: 0084 | E85: 5.45 | F85: 6.217 | G85: 1 | H85: 6.217 | I85: умеренный | J85: 3.1. 3.2. 3.6. 3.18. 3.21. 27.1 28.2. 28.5. 28.1.01. 29.1. 35.1. 35.2. 35.3 35.4. 35.5. 35.6. 35.7. 7.1. 28.1.02. 28.1.03. 24.1. 24.4. 27.2.
A86: 85 | B86: Управление материально-технического снабжения/Центральный склад | C86: Кладовщик | D86: 0085 | E86: 5.46 | F86: 6.169 | G86: 1 | H86: 6.169 | I86: умеренный | J86: 3.1. 3.2. 3.6. 3.18. 3.21. 27.1 28.2. 28.5. 28.1.01. 29.1. 35.1. 35.2. 35.3 35.4. 35.5. 35.6. 35.7. 7.1. 28.1.02. 28.1.03. 24.1. 27.2.
A87: 86 | B87: Управление материально-технического снабжения/Центральный склад | C87: Комплектовщик изделий и инструмента 3 разряд | D87: 0086 | E87: 5.47 | F87: 6.239 | G87: 1 | H87: 6.239 | I87: умеренный | J87: 3.1. 3.2. 3.6. 22.1 3.18. 3.21. 27.1 28.2. 28.5. 28.1.01. 29.1. 35.1. 35.2. 35.3 35.4. 35.5. 35.6. 35.7. 7.1. 28.1.02. 28.1.03. 23.1. 24.1. 27.2.
A88: 87 | B88: Управление материально-технического снабжения/Центральный склад | C88: Уборщик производственных и служебных помещений | D88: 0087 | E88: 5.48 | F88: 6.302 | G88: 1 | H88: 6.302 | I88: умеренный | J88: 3.1. 3.2. 3.6. 3.21. 27.1 9.8. 9.3. 28.5. 35.1. 35.2. 35.3 35.4. 35.5. 35.6. 35.7. 7.1. 28.1.02. 28.1.03. 23.1. 24.1. 27.2.
A89: 88 | B89: Эксплуатационный гидротехнический район 5 | C89: Мастер | D89: 0088 | E89: 5.49 | F89: 6.361 | G89: 1 | H89: 6.361 | I89: умеренный | J89: 3.1. 3.2. 3.6. 3.18. 3.21. 27.1 12.1 28.5. 28.1.01. 21.1 29.1. 35.1. 35.2. 35.3 35.4. 35.5. 35.6. 35.7. 7.1. 28.1.02. 28.1.03. 24.1. 27.2.
A90: 89 | B90: Эксплуатационный гидротехнический район 4 | C90: Водитель автомобиля | D90: 0089 | E90: 6.01 | F90: 6.358 | G90: 1 | H90: 6.358 | I90: умеренный | J90: 3.1. 3.2. 3.6. 3.21. 27.1 9.8. 28.5. 28.1.01. 35.1. 35.2. 35.3 35.4. 35.5. 35.6. 35.7. 7.2. 28.1.02. 28.1.03. 24.1. 27.2.
A91: 90 | B91: Эксплуатационный гидротехнический район 4 | C91: Кладовщик | D91: 0090 | E91: 6.02 | F91: 6.169 | G91: 1 | H91: 6.169 | I91: умеренный | J91: 3.1. 3.2. 3.6. 3.18. 3.21. 27.1 28.2. 28.5. 28.1.01. 29.1. 35.1. 35.2. 35.3 35.4. 35.5. 35.6. 35.7. 7.1. 28.1.02. 28.1.03. 24.1. 27.2.
A92: 91 | B92: Эксплуатационный гидротехнический район 4 | C92: Слесарь-сантехник 3 разряд | D92: 0091 | E92: 6.03 | F92: 6.358 | G92: 1 | H92: 6.358 | I92: умеренный | J92: 3.1. 3.2. 3.6. 3.7. 3.8. 3.17. 3.18. 3.21. 27.1 28.4. 28.5. 28.1.01. 21.1 29.1. 35.1. 35.2. 35.3 35.4. 35.5. 35.6. 35.7. 7.1. 28.1.02. 28.1.03. 3.4. 24.1. 27.2.
A93: 92 | B93: Эксплуатационный гидротехнический район 4 | C93: Уборщик производственных и служебных помещений | D93: 0092 | E93: 6.04 | F93: 6.302 | G93: 1 | H93: 6.302 | I93: умеренный | J93: 3.1. 3.2. 3.6. 3.21. 27.1 9.8. 9.3. 28.5. 35.1. 35.2. 35.3 35.4. 35.5. 35.6. 35.7. 7.1. 28.1.02. 28.1.03. 23.1. 24.1. 27.2.
A94: 93 | B94: Эксплуатационный гидротехнический район 4/Технический отдел | C94: Ведущий инженер | D94: 0093 | E94: 6.05 | F94: 6.226 | G94: 1 | H94: 6.226 | I94: умеренный | J94: 3.1. 3.2. 3.6. 3.18. 27.1 28.5. 28.1.01. 28.8. 29.1. 35.1. 35.2. 35.3 35.4. 35.5. 35.6. 35.7. 7.1. 28.1.02. 28.1.03. 24.1. 24.4. 27.2.
A95: 94 | B95: Эксплуатационный гидротехнический район 4/Технический отдел | C95: Инженер (1, 2 категории) | D95: 0094 | E95: 6.06 | F95: 6.2 | G95: 1 | H95: 6.2 | I95: умеренный | J95: 3.1. 3.2. 3.6. 3.18. 3.21. 27.1 28.5. 28.1.01. 28.8. 35.1. 35.2. 35.3 35.4. 35.5. 35.6. 35.7. 7.1. 28.1.02. 28.1.03. 24.1. 27.2.
A96: 95 | B96: Эксплуатационный гидротехнический район 4/Технический отдел | C96: Техник | D96: 0095 | E96: 6.07 | F96: 6.2 | G96: 1 | H96: 6.2 | I96: умеренный | J96: 3.1. 3.2. 3.6. 3.18. 3.21. 27.1 28.5. 28.1.01. 28.8. 35.1. 35.2. 35.3 35.4. 35.5. 35.6. 35.7. 7.1. 28.1.02. 28.1.03. 24.1. 27.2.
A97: 96 | B97: Эксплуатационный гидротехнический район 6/Снегосплавные пункты | C97: Диспетчер | D97: 0096 | E97: 7.01 | F97: 6.934 | G97: 1 | H97: 6.934 | I97: умеренный | J97: 3.1. 3.2. 3.6. 3.18. 27.1 27.8. 28.5. 28.1.01. 28.8. 35.1. 35.2. 35.3 35.4. 35.5. 35.6. 35.7. 7.1. 28.1.02. 28.1.03. 24.1. 27.2.
A98: 97 | B98: Эксплуатационный гидротехнический район 6/Снегосплавные пункты | C98: Слесарь аварийно-восстановительных работ 3 разряда | D98: 0097 | E98: 7.02 | F98: 6.387 | G98: 1,2 | H98: 7.6644 | I98: умеренный | J98: 3.1. 3.3. 3.2. 3.6. 3.7. 3.8. 22.1 3.17. 3.18. 3.21. 27.1 16.3. 16.4. 16.5 9.8. 9.2. 28.2. 28.4. 28.5. 28.1.01. 21.1 29.1. 35.1. 35.2. 35.3 35.4. 35.5. 35.6. 35.7. 7.1. 28.1.02. 28.1.03. 3.4. 9.1. 23.1. 24.1. 27.2.
A99: 98 | B99: Эксплуатационный гидротехнический район 6/Снегосплавный пункт | C99: Диспетчер | D99: 0098 | E99: 7.03 | F99: 6.2 | G99: 1 | H99: 6.2 | I99: умеренный | J99: 3.1. 3.2. 3.6. 3.18. 3.21. 27.1 28.5. 28.1.01. 28.8. 35.1. 35.2. 35.3 35.4. 35.5. 35.6. 35.7. 7.1. 28.1.02. 28.1.03. 24.1. 27.2.
A100: 99 | B100: Эксплуатационный гидротехнический район 6/Снегосплавный пункт | C100: Мастер | D100: 0099 | E100: 7.04 | F100: 6.361 | G100: 1 | H100: 6.361 | I100: умеренный | J100: 3.1. 3.2. 3.6. 3.18. 3.21. 27.1 12.1 28.5. 28.1.01. 21.1 29.1. 35.1. 35.2. 35.3 35.4. 35.5. 35.6. 35.7. 7.1. 28.1.02. 28.1.03. 24.1. 27.2.
A101: 100 | B101: Эксплуатационный гидротехнический район 6/Снегосплавный пункт | C101: Машинист экскаватора-погрузчика 5 разряд | D101: 0100 | E101: 7.05 | F101: 6.231 | G101: 1 | H101: 6.231 | I101: умеренный | J101: 3.1. 3.2. 3.6. 3.18. 3.21. 27.1 9.8. 9.2. 28.5. 28.1.01. 35.1. 35.2. 35.3 35.4. 35.5. 35.6. 35.7. 7.1. 7.4. 7.2. 28.1.02. 28.1.03. 24.1. 27.2.
A102: 101 | B102: Эксплуатационный гидротехнический район 6/Снегосплавный пункт | C102: Начальник | D102: 0101 | E102: 7.06 | F102: 6.226 | G102: 1,2 | H102: 7.4712 | I102: умеренный | J102: 3.1. 3.2. 3.6. 3.18. 3.21. 27.1 28.5. 28.1.01. 28.8. 35.1. 35.2. 35.3 35.4. 35.5. 35.6. 35.7. 7.1. 28.1.02. 28.1.03. 24.1. 24.4. 27.2.
A103: 102 | B103: Эксплуатационный гидротехнический район 6/Снегосплавный пункт | C103: Слесарь аварийно-восстановительных работ 3 разряда | D103: 0102 | E103: 7.07 | F103: 6.387 | G103: 1,2 | H103: 7.6644 | I103: умеренный | J103: 3.1. 3.3. 3.2. 3.6. 3.7. 3.8. 22.1 3.17. 3.18. 3.21. 27.1 16.3. 16.4. 16.5 9.8. 9.2. 28.2. 28.4. 28.5. 28.1.01. 21.1 29.1. 35.1. 35.2. 35.3 35.4. 35.5. 35.6. 35.7. 7.1. 28.1.02. 28.1.03. 3.4. 9.1. 23.1. 24.1. 27.2.
A104: 103 | B104: Эксплуатационный гидротехнический район 2/Служба эксплуатации по г.Зеленограду | C104: Водитель автомобиля | D104: 0103 | E104: 8.01 | F104: 6.358 | G104: 1 | H104: 6.358 | I104: умеренный | J104: 3.1. 3.2. 3.6. 3.21. 27.1 9.8. 28.5. 28.1.01. 35.1. 35.2. 35.3 35.4. 35.5. 35.6. 35.7. 7.2. 28.1.02. 28.1.03. 24.1. 27.2.
A105: 104 | B105: Эксплуатационный гидротехнический район 2/Служба эксплуатации по г.Зеленограду | C105: Диспетчер | D105: 0104 | E105: 8.02 | F105: 6.2 | G105: 1 | H105: 6.2 | I105: умеренный | J105: 3.1. 3.2. 3.6. 3.18. 3.21. 27.1 28.5. 28.1.01. 28.8. 35.1. 35.2. 35.3 35.4. 35.5. 35.6. 35.7. 7.1. 28.1.02. 28.1.03. 24.1. 27.2.
A106: 105 | B106: Эксплуатационный гидротехнический район 2/Служба эксплуатации по г.Зеленограду | C106: Заместитель начальника | D106: 0105 | E106: 8.03 | F106: 6.226 | G106: 1 | H106: 6.226 | I106: умеренный | J106: 3.1. 3.2. 3.6. 3.18. 3.21. 27.1 28.5. 28.1.01. 28.8. 35.1. 35.2. 35.3 35.4. 35.5. 35.6. 35.7. 7.1. 28.1.02. 28.1.03. 24.1. 24.4. 27.2.
A107: 106 | B107: Эксплуатационный гидротехнический район 2/Служба эксплуатации по г.Зеленограду | C107: Кладовщик | D107: 0106 | E107: 8.04 | F107: 6.169 | G107: 1 | H107: 6.169 | I107: умеренный | J107: 3.1. 3.2. 3.6. 3.18. 3.21. 27.1 28.2. 28.5. 28.1.01. 29.1. 35.1. 35.2. 35.3 35.4. 35.5. 35.6. 35.7. 7.1. 28.1.02. 28.1.03. 24.1. 27.2.
A108: 107 | B108: Эксплуатационный гидротехнический район 2/Служба эксплуатации по г.Зеленограду | C108: Контролер технического состояния автотранспортных средств | D108: 0107 | E108: 8.05 | F108: 6.279 | G108: 1 | H108: 6.279 | I108: умеренный | J108: 3.1. 3.2. 3.6. 3.18. 27.1 9.8. 28.5. 28.1.01. 21.1 35.1. 35.2. 35.3 35.4. 35.5. 35.6. 35.7. 7.1. 28.1.02. 28.1.03. 24.1. 27.2.
A109: 108 | B109: Эксплуатационный гидротехнический район 2/Служба эксплуатации по г.Зеленограду | C109: Мастер | D109: 0108 | E109: 8.06 | F109: 6.361 | G109: 1 | H109: 6.361 | I109: умеренный | J109: 3.1. 3.2. 3.6. 3.18. 3.21. 27.1 12.1 28.5. 28.1.01. 21.1 29.1. 35.1. 35.2. 35.3 35.4. 35.5. 35.6. 35.7. 7.1. 28.1.02. 28.1.03. 24.1. 27.2.
A110: 109 | B110: Эксплуатационный гидротехнический район 2/Служба эксплуатации по г.Зеленограду | C110: Мастер АВР | D110: 0109 | E110: 8.07 | F110: 6.361 | G110: 1 | H110: 6.361 | I110: умеренный | J110: 3.1. 3.2. 3.6. 3.18. 3.21. 27.1 12.1 28.5. 28.1.01. 21.1 29.1. 35.1. 35.2. 35.3 35.4. 35.5. 35.6. 35.7. 7.1. 28.1.02. 28.1.03. 24.1. 27.2.
A111: 110 | B111: Эксплуатационный гидротехнический район 2/Служба эксплуатации по г.Зеленограду | C111: Машинист экскаватора 5 разряд | D111: 0110 | E111: 8.08 | F111: 6.231 | G111: 1 | H111: 6.231 | I111: умеренный | J111: 3.1. 3.2. 3.6. 3.18. 3.21. 27.1 9.8. 9.2. 28.5. 28.1.01. 35.1. 35.2. 35.3 35.4. 35.5. 35.6. 35.7. 7.1. 7.4. 7.2. 28.1.02. 28.1.03. 24.1. 27.2.
A112: 111 | B112: Эксплуатационный гидротехнический район 2/Служба эксплуатации по г.Зеленограду | C112: Начальник | D112: 0111 | E112: 8.09 | F112: 6.226 | G112: 1 | H112: 6.226 | I112: умеренный | J112: 3.1. 3.2. 3.6. 3.18. 3.21. 27.1 28.5. 28.1.01. 28.8. 35.1. 35.2. 35.3 35.4. 35.5. 35.6. 35.7. 7.1. 28.1.02. 28.1.03. 24.1. 24.4. 27.2.
A113: 112 | B113: Эксплуатационный гидротехнический район 2/Служба эксплуатации по г.Зеленограду | C113: Речной рабочий на подводно-технических, габионных и фашинных работах, выполняемых с поверхности (2, 3, 4 разряда) | D113: 0112 | E113: 8.1 | F113: 6.323 | G113: 1,2 | H113: 7.5876 | I113: умеренный | J113: 3.1. 3.2. 3.6. 3.18. 3.21. 27.1 28.5. 4.1. 35.1. 35.2. 35.3 35.4. 35.5. 35.6. 35.7. 7.1. 28.1.02. 28.1.03. 23.1. 24.1. 27.2.
A114: 113 | B114: Эксплуатационный гидротехнический район 2/Служба эксплуатации по г.Зеленограду | C114: Слесарь аварийно-восстановительных работ (3, 4, 5 разряда) | D114: 0113 | E114: 8.11 | F114: 6.387 | G114: 1,2 | H114: 7.6644 | I114: умеренный | J114: 3.1. 3.3. 3.2. 3.6. 3.7. 3.8. 22.1 3.17. 3.18. 3.21. 27.1 16.3. 16.4. 16.5 9.8. 9.2. 28.2. 28.4. 28.5. 28.1.01. 21.1 29.1. 35.1. 35.2. 35.3 35.4. 35.5. 35.6. 35.7. 7.1. 28.1.02. 28.1.03. 3.4. 9.1. 23.1. 24.1. 27.2.
A115: 114 | B115: Эксплуатационный гидротехнический район 2/Служба эксплуатации по г.Зеленограду | C115: Слесарь по ремонту автомобилей 5 разряда | D115: 0114 | E115: 8.12 | F115: 6.268 | G115: 1 | H115: 6.268 | I115: умеренный | J115: 3.1. 3.2. 3.6. 22.1 3.18. 3.21. 27.1 9.8. 9.2. 28.5. 28.1.01. 21.1 35.1. 35.2. 35.3 35.4. 35.5. 35.6. 35.7. 7.1. 28.1.02. 28.1.03. 24.1. 27.2.
A116: 115 | B116: Эксплуатационный гидротехнический район 2/Служба эксплуатации по г.Зеленограду | C116: Старший мастер АВР | D116: 0115 | E116: 8.13 | F116: 6.361 | G116: 1 | H116: 6.361 | I116: умеренный | J116: 3.1. 3.2. 3.6. 3.18. 3.21. 27.1 12.1 28.5. 28.1.01. 21.1 29.1. 35.1. 35.2. 35.3 35.4. 35.5. 35.6. 35.7. 7.1. 28.1.02. 28.1.03. 24.1. 27.2.
A117: 116 | B117: Эксплуатационный гидротехнический район 2/Служба эксплуатации по г.Зеленограду | C117: Уборщик производственных и служебных помещений | D117: 0116 | E117: 8.14 | F117: 6.302 | G117: 1 | H117: 6.302 | I117: умеренный | J117: 3.1. 3.2. 3.6. 3.21. 27.1 9.8. 9.3. 28.5. 35.1. 35.2. 35.3 35.4. 35.5. 35.6. 35.7. 7.1. 28.1.02. 28.1.03. 23.1. 24.1. 27.2.
A118: 117 | B118: Эксплуатационный гидротехнический район 2/Служба эксплуатации по г.Зеленограду | C118: Электромеханик | D118: 0117 | E118: 8.15 | F118: 6.362 | G118: 1 | H118: 6.362 | I118: умеренный | J118: 3.1. 3.2. 3.6. 3.18. 3.21. 27.1 27.8. 27.5 27.4. 28.5. 28.1.01. 21.1 35.1. 35.2. 35.3 35.4. 35.5. 35.6. 35.7. 7.1. 28.1.02. 28.1.03. 24.1. 27.2.
A119: 118 | B119: Эксплуатационный гидротехнический район 2/Служба эксплуатации по г.Зеленограду | C119: Электромонтер по ремонту и обслуживанию электрооборудования 5 разряда | D119: 0118 | E119: 8.16 | F119: 6.413 | G119: 1 | H119: 6.413 | I119: умеренный | J119: 3.1. 3.2. 3.6. 3.21. 27.1 27.8. 27.5 27.4. 9.8. 9.2. 28.5. 28.1.01. 21.1 35.1. 35.2. 35.3 35.4. 35.5. 35.6. 35.7. 7.1. 28.1.02. 28.1.03. 23.1. 24.1. 27.2.
A120: 119 | B120: Эксплуатационный гидротехнический район 2 | C120: Инженер по охране труда 1 категории | D120: 0119 | E120: 9.01 | F120: 6.2 | G120: 1 | H120: 6.2 | I120: умеренный | J120: 3.1. 3.2. 3.6. 3.18. 3.21. 27.1 28.5. 28.1.01. 28.8. 35.1. 35.2. 35.3 35.4. 35.5. 35.6. 35.7. 7.1. 28.1.02. 28.1.03. 24.1. 27.2.
A121: 120 | B121: Управление очистных сооружений/Служба технологических работ/Участок №5 | C121: Ведущий инженер | D121: 0120 | E121: 10.01 | F121: 6.226 | G121: 1 | H121: 6.226 | I121: умеренный | J121: 3.1. 3.2. 3.6. 3.18. 27.1 28.5. 28.1.01. 28.8. 29.1. 35.1. 35.2. 35.3 35.4. 35.5. 35.6. 35.7. 7.1. 28.1.02. 28.1.03. 24.1. 24.4. 27.2.
A122: 121 | B122: Управление очистных сооружений/Служба технологических работ/Участок №5 | C122: Инженер 1 категории | D122: 0121 | E122: 10.02 | F122: 6.2 | G122: 1,2 | H122: 7.44 | I122: умеренный | J122: 3.1. 3.2. 3.6. 3.18. 3.21. 27.1 28.5. 28.1.01. 28.8. 35.1. 35.2. 35.3 35.4. 35.5. 35.6. 35.7. 7.1. 28.1.02. 28.1.03. 24.1. 27.2.
A123: 122 | B123: Управление очистных сооружений/Служба технологических работ/Участок №5 | C123: Заместитель начальника | D123: 0122 | E123: 10.03 | F123: 6.226 | G123: 1,2 | H123: 7.4712 | I123: умеренный | J123: 3.1. 3.2. 3.6. 3.18. 3.21. 27.1 28.5. 28.1.01. 28.8. 35.1. 35.2. 35.3 35.4. 35.5. 35.6. 35.7. 7.1. 28.1.02. 28.1.03. 24.1. 24.4. 27.2.
A124: 123 | B124: Управление очистных сооружений/Служба технологических работ/Участок №5 | C124: Начальник | D124: 0123 | E124: 10.04 | F124: 6.226 | G124: 1 | H124: 6.226 | I124: умеренный | J124: 3.1. 3.2. 3.6. 3.18. 3.21. 27.1 28.5. 28.1.01. 28.8. 35.1. 35.2. 35.3 35.4. 35.5. 35.6. 35.7. 7.1. 28.1.02. 28.1.03. 24.1. 24.4. 27.2.
A125: 124 | B125: Управление очистных сооружений/Служба технологических работ/Участок №5 | C125: Старший мастер | D125: 0124 | E125: 10.05 | F125: 6.27 | G125: 1 | H125: 6.27 | I125: умеренный | J125: 3.1. 3.2. 3.6. 3.17. 3.18. 3.21. 27.1 12.1 28.5. 28.1.01. 28.8. 21.1 29.1. 35.1. 35.2. 35.3 35.4. 35.5. 35.6. 35.7. 7.1. 28.1.02. 28.1.03. 24.1. 24.4. 27.2.
A126: 125 | B126: Управление очистных сооружений/Служба технологических работ/Участок №5 | C126: Слесарь аварийно-восстановительных работ (4, 5 разряда) | D126: 0125 | E126: 10.06 | F126: 6.387 | G126: 1,2 | H126: 7.6644 | I126: умеренный | J126: 3.1. 3.3. 3.2. 3.6. 3.7. 3.8. 22.1 3.17. 3.18. 3.21. 27.1 16.3. 16.4. 16.5 9.8. 9.2. 28.2. 28.4. 28.5. 28.1.01. 21.1 29.1. 35.1. 35.2. 35.3 35.4. 35.5. 35.6. 35.7. 7.1. 28.1.02. 28.1.03. 3.4. 9.1. 23.1. 24.1. 27.2.
A127: 126 | B127: Управление очистных сооружений/Служба технологических работ/Участок №5 | C127: Электромеханик | D127: 0126 | E127: 10.07 | F127: 6.362 | G127: 1 | H127: 6.362 | I127: умеренный | J127: 3.1. 3.2. 3.6. 3.18. 3.21. 27.1 27.8. 27.5 27.4. 28.5. 28.1.01. 21.1 35.1. 35.2. 35.3 35.4. 35.5. 35.6. 35.7. 7.1. 28.1.02. 28.1.03. 24.1. 27.2.
A128: 127 | B128: Управление очистных сооружений/Служба технологических работ/Участок №5 | C128: Электромонтер по ремонту и обслуживанию электрооборудования 5 разряда | D128: 0127 | E128: 10.08 | F128: 6.413 | G128: 1,2 | H128: 7.6956 | I128: умеренный | J128: 3.1. 3.2. 3.6. 3.21. 27.1 27.8. 27.5 27.4. 9.8. 9.2. 28.5. 28.1.01. 21.1 35.1. 35.2. 35.3 35.4. 35.5. 35.6. 35.7. 7.1. 28.1.02. 28.1.03. 23.1. 24.1. 27.2.
A129: 128 | B129: Управление очистных сооружений/Служба технологических работ/Участок №5 | C129: Электросварщик ручной сварки 5 разряда | D129: 0128 | E129: 10.09 | F129: 6.373 | G129: 1,2 | H129: 7.6476 | I129: умеренный | J129: 3.1. 3.2. 3.6. 3.18. 3.21. 27.1 13.1 13.10. 16.3. 12.1 12.3. 28.5. 28.1.01. 21.1 30.6. 30.7. 30.8. 35.1. 35.2. 35.3 35.4. 35.5. 35.6. 35.7. 7.1. 28.1.02. 28.1.03. 24.1. 27.2.
A130: 129 | B130: Эксплуатационный гидротехнический район 2/Технический отдел | C130: Ведущий инженер | D130: 0129 | E130: 10.1 | F130: 6.226 | G130: 1 | H130: 6.226 | I130: умеренный | J130: 3.1. 3.2. 3.6. 3.18. 27.1 28.5. 28.1.01. 28.8. 29.1. 35.1. 35.2. 35.3 35.4. 35.5. 35.6. 35.7. 7.1. 28.1.02. 28.1.03. 24.1. 24.4. 27.2.
A131: 130 | B131: Эксплуатационный гидротехнический район 2/Технический отдел | C131: Инженер (1, 2 категории) | D131: 0130 | E131: 10.11 | F131: 6.2 | G131: 1 | H131: 6.2 | I131: умеренный | J131: 3.1. 3.2. 3.6. 3.18. 3.21. 27.1 28.5. 28.1.01. 28.8. 35.1. 35.2. 35.3 35.4. 35.5. 35.6. 35.7. 7.1. 28.1.02. 28.1.03. 24.1. 27.2.
A132: 131 | B132: Эксплуатационный гидротехнический район 2/Технический отдел | C132: Техник | D132: 0131 | E132: 10.12 | F132: 6.2 | G132: 1 | H132: 6.2 | I132: умеренный | J132: 3.1. 3.2. 3.6. 3.18. 3.21. 27.1 28.5. 28.1.01. 28.8. 35.1. 35.2. 35.3 35.4. 35.5. 35.6. 35.7. 7.1. 28.1.02. 28.1.03. 24.1. 27.2.
A133: 132 | B133: Флот/Снегосплавные пункты | C133: Диспетчер | D133: 0132 | E133: 11.01 | F133: 6.2 | G133: 1 | H133: 6.2 | I133: умеренный | J133: 3.1. 3.2. 3.6. 3.18. 3.21. 27.1 28.5. 28.1.01. 28.8. 35.1. 35.2. 35.3 35.4. 35.5. 35.6. 35.7. 7.1. 28.1.02. 28.1.03. 24.1. 27.2.
A134: 133 | B134: Флот/Снегосплавные пункты | C134: Мастер | D134: 0133 | E134: 11.02 | F134: 6.361 | G134: 1 | H134: =F:F*G:G -> 6.361 | I134: умеренный | J134: 3.1. 3.2. 3.6. 3.18. 3.21. 27.1 12.1 28.5. 28.1.01. 21.1 29.1. 35.1. 35.2. 35.3 35.4. 35.5. 35.6. 35.7. 7.1. 28.1.02. 28.1.03. 24.1. 27.2.
A135: 134 | B135: Флот/Снегосплавные пункты | C135: Начальник | D135: 0134 | E135: 11.03 | F135: 6.226 | G135: 1,3 | H135: 8.0938 | I135: умеренный | J135: 3.1. 3.2. 3.6. 3.18. 3.21. 27.1 28.5. 28.1.01. 28.8. 35.1. 35.2. 35.3 35.4. 35.5. 35.6. 35.7. 7.1. 28.1.02. 28.1.03. 24.1. 24.4. 27.2.
A136: 135 | B136: Флот/Снегосплавные пункты | C136: Слесарь аварийно-восстановительных работ 3 разряда | D136: 0135 | E136: 11.04 | F136: 6.387 | G136: 1,2 | H136: 7.6644 | I136: умеренный | J136: 3.1. 3.3. 3.2. 3.6. 3.7. 3.8. 22.1 3.17. 3.18. 3.21. 27.1 16.3. 16.4. 16.5 9.8. 9.2. 28.2. 28.4. 28.5. 28.1.01. 21.1 29.1. 35.1. 35.2. 35.3 35.4. 35.5. 35.6. 35.7. 7.1. 28.1.02. 28.1.03. 3.4. 9.1. 23.1. 24.1. 27.2.
A137: 136 | B137: Эксплуатационный гидротехнический район 3 | C137: Мастер АВР | D137: 0136 | E137: 12.01 | F137: 6.361 | G137: 1 | H137: 6.361 | I137: умеренный | J137: 3.1. 3.2. 3.6. 3.18. 3.21. 27.1 12.1 28.5. 28.1.01. 21.1 29.1. 35.1. 35.2. 35.3 35.4. 35.5. 35.6. 35.7. 7.1. 28.1.02. 28.1.03. 24.1. 27.2.
A138: 137 | B138: Управление очистных сооружений/Служба технологических работ/Участок №2 | C138: Оператор насосных станций 1 разряд | D138: 0137 | E138: 13.01 | F138: 6.258 | G138: 1 | H138: 6.258 | I138: умеренный | J138: 3.1. 3.2. 3.6. 3.18. 3.21. 27.1 28.5. 28.1.01. 21.1 35.1. 35.2. 35.3 35.4. 35.5. 35.6. 35.7. 7.1. 28.1.02. 28.1.03. 24.1. 27.2.
A139: 138 | B139: Управление очистных сооружений/Руководство | C139: Заместитель начальника - начальник службы технологических работ | D139: 0138 | E139: 14.01 | F139: 6.226 | G139: 1 | H139: 6.226 | I139: умеренный | J139: 3.1. 3.2. 3.6. 3.18. 3.21. 27.1 28.5. 28.1.01. 28.8. 35.1. 35.2. 35.3 35.4. 35.5. 35.6. 35.7. 7.1. 28.1.02. 28.1.03. 24.1. 24.4. 27.2.
A140: 139 | B140: Управление очистных сооружений/Служба технологических работ/Участок №1/Станция по обслуживанию ОС ФНС "Москва-Сити" | C140: Мастер | D140: 0139 | E140: 14.02 | F140: 6.361 | G140: 1 | H140: 6.361 | I140: умеренный | J140: 3.1. 3.2. 3.6. 3.18. 3.21. 27.1 12.1 28.5. 28.1.01. 21.1 29.1. 35.1. 35.2. 35.3 35.4. 35.5. 35.6. 35.7. 7.1. 28.1.02. 28.1.03. 24.1. 27.2.
A141: 140 | B141: Управление очистных сооружений/Служба технологических работ/Участок №1/Станция по обслуживанию ОС ФНС "Москва-Сити" | C141: Слесарь аварийно-восстановительных работ (4, 5 разряда) | D141: 0140 | E141: 14.03 | F141: 6.387 | G141: 1,2 | H141: 7.6644 | I141: умеренный | J141: 3.1. 3.3. 3.2. 3.6. 3.7. 3.8. 22.1 3.17. 3.18. 3.21. 27.1 16.3. 16.4. 16.5 9.8. 9.2. 28.2. 28.4. 28.5. 28.1.01. 21.1 29.1. 35.1. 35.2. 35.3 35.4. 35.5. 35.6. 35.7. 7.1. 28.1.02. 28.1.03. 3.4. 9.1. 23.1. 24.1. 27.2.
A142: 141 | B142: Управление очистных сооружений/Служба технологических работ/Участок №1/Станция по обслуживанию ОС ФНС "Москва-Сити" | C142: Электромонтер по ремонту и обслуживанию электрооборудования 5 разряда | D142: 0141 | E142: 14.04 | F142: 6.413 | G142: 1 | H142: 6.413 | I142: умеренный | J142: 3.1. 3.2. 3.6. 3.21. 27.1 27.8. 27.5 27.4. 9.8. 9.2. 28.5. 28.1.01. 21.1 35.1. 35.2. 35.3 35.4. 35.5. 35.6. 35.7. 7.1. 28.1.02. 28.1.03. 23.1. 24.1. 27.2.
A143: 142 | B143: Эксплуатационный гидротехнический район 2 | C143: Уборщик производственных и служебных помещений | D143: 0142 | E143: 15.01 | F143: 6.302 | G143: 1 | H143: 6.302 | I143: умеренный | J143: 3.1. 3.2. 3.6. 3.21. 27.1 9.8. 9.3. 28.5. 35.1. 35.2. 35.3 35.4. 35.5. 35.6. 35.7. 7.1. 28.1.02. 28.1.03. 23.1. 24.1. 27.2.
A144: 143 | B144: Управление очистных сооружений/Служба автоматизации и диспетчеризации | C144: Инженер-энергетик 1 категории | D144: 0143 | E144: 16.01 | F144: 6.246 | G144: 1 | H144: 6.246 | I144: умеренный | J144: 3.1. 3.2. 3.6. 3.18. 3.21. 27.1 28.5. 28.1.01. 28.8. 35.1. 35.2. 35.3 35.4. 35.5. 35.6. 35.7. 7.1. 28.1.02. 28.1.03. 24.1. 27.2.
A145: 144 | B145: Управление очистных сооружений/Служба технологических работ/Участок №2/Войковское очистное сооружение | C145: Оператор очистных сооружений 2 разряда | D145: 0144 | E145: 16.02 | F145: 6.333 | G145: 1 | H145: 6.333 | I145: умеренный | J145: 3.1. 3.2. 3.6. 3.18. 3.21. 27.1 16.4. 16.5 9.8. 9.2. 28.5. 28.1.01. 21.1 29.1. 35.1. 35.2. 35.3 35.4. 35.5. 35.6. 35.7. 7.1. 28.1.02. 28.1.03. 24.1. 27.2.
A146: 145 | B146: Управление очистных сооружений/Служба технологических работ/Участок №2/Войковское очистное сооружение | C146: Слесарь аварийно-восстановительных работ 5 разряда | D146: 0145 | E146: 16.03 | F146: 6.387 | G146: 1,2 | H146: 7.6644 | I146: умеренный | J146: 3.1. 3.3. 3.2. 3.6. 3.7. 3.8. 22.1 3.17. 3.18. 3.21. 27.1 16.3. 16.4. 16.5 9.8. 9.2. 28.2. 28.4. 28.5. 28.1.01. 21.1 29.1. 35.1. 35.2. 35.3 35.4. 35.5. 35.6. 35.7. 7.1. 28.1.02. 28.1.03. 3.4. 9.1. 23.1. 24.1. 27.2.
A147: 146 | B147: Управление очистных сооружений/Служба технологических работ/Участок №2/Войковское очистное сооружение | C147: Старший оператор очистных сооружений | D147: 0146 | E147: 16.04 | F147: 6.351 | G147: 1 | H147: 6.351 | I147: умеренный | J147: 3.1. 3.2. 3.6. 3.18. 3.21. 27.1 16.4. 16.5 9.8. 9.2. 28.5. 28.1.01. 21.1 29.1. 35.1. 35.2. 35.3 35.4. 35.5. 35.6. 35.7. 7.1. 28.1.02. 28.1.03. 24.1. 24.4. 27.2.
A148: 147 | B148: Управление очистных сооружений/Служба технологических работ/Участок №2/Войковское очистное сооружение | C148: Уборщик производственных и служебных помещений | D148: 0147 | E148: 16.05 | F148: 6.302 | G148: 1 | H148: 6.302 | I148: умеренный | J148: 3.1. 3.2. 3.6. 3.21. 27.1 9.8. 9.3. 28.5. 35.1. 35.2. 35.3 35.4. 35.5. 35.6. 35.7. 7.1. 28.1.02. 28.1.03. 23.1. 24.1. 27.2.
A149: 148 | B149: Управление очистных сооружений/Служба технологических работ/Участок №2/Войковское очистное сооружение | C149: Электромонтер по ремонту и обслуживанию электрооборудования 5 разряда | D149: 0148 | E149: 16.06 | F149: 6.413 | G149: 1 | H149: 6.413 | I149: умеренный | J149: 3.1. 3.2. 3.6. 3.21. 27.1 27.8. 27.5 27.4. 9.8. 9.2. 28.5. 28.1.01. 21.1 35.1. 35.2. 35.3 35.4. 35.5. 35.6. 35.7. 7.1. 28.1.02. 28.1.03. 23.1. 24.1. 27.2.
A150: 149 | B150: Строительно-монтажное управление/Оперативно-диспетчерский отдел | C150: Диспетчер | D150: 0149 | E150: 17.01 | F150: 6.2 | G150: 1 | H150: 6.2 | I150: умеренный | J150: 3.1. 3.2. 3.6. 3.18. 3.21. 27.1 28.5. 28.1.01. 28.8. 35.1. 35.2. 35.3 35.4. 35.5. 35.6. 35.7. 7.1. 28.1.02. 28.1.03. 24.1. 27.2.
A151: 150 | B151: Строительно-монтажное управление/Оперативно-диспетчерский отдел | C151: Инженер 1 категории | D151: 0150 | E151: 17.02 | F151: 6.2 | G151: 1 | H151: 6.2 | I151: умеренный | J151: 3.1. 3.2. 3.6. 3.18. 3.21. 27.1 28.5. 28.1.01. 28.8. 35.1. 35.2. 35.3 35.4. 35.5. 35.6. 35.7. 7.1. 28.1.02. 28.1.03. 24.1. 27.2.
A152: 151 | B152: Строительно-монтажное управление/Оперативно-диспетчерский отдел | C152: Уборщик производственных и служебных помещений | D152: 0151 | E152: 17.03 | F152: 6.302 | G152: 1 | H152: 6.302 | I152: умеренный | J152: 3.1. 3.2. 3.6. 3.21. 27.1 9.8. 9.3. 28.5. 35.1. 35.2. 35.3 35.4. 35.5. 35.6. 35.7. 7.1. 28.1.02. 28.1.03. 23.1. 24.1. 27.2.
A153: 152 | B153: Строительно-монтажное управление/Отдел геодезии | C153: Ведущий инженер | D153: 0152 | E153: 17.04 | F153: 6.226 | G153: 1 | H153: 6.226 | I153: умеренный | J153: 3.1. 3.2. 3.6. 3.18. 27.1 28.5. 28.1.01. 28.8. 29.1. 35.1. 35.2. 35.3 35.4. 35.5. 35.6. 35.7. 7.1. 28.1.02. 28.1.03. 24.1. 24.4. 27.2.
A154: 153 | B154: Строительно-монтажное управление/Производственно-технический отдел | C154: Инженер 1 категории | D154: 0153 | E154: 17.05 | F154: 6.2 | G154: 1 | H154: 6.2 | I154: умеренный | J154: 3.1. 3.2. 3.6. 3.18. 3.21. 27.1 28.5. 28.1.01. 28.8. 35.1. 35.2. 35.3 35.4. 35.5. 35.6. 35.7. 7.1. 28.1.02. 28.1.03. 24.1. 27.2.
A155: 154 | B155: Эксплуатационный гидротехнический район 5 | C155: Главный инженер - начальник технического отдела | D155: 0154 | E155: 18.01 | F155: 6.226 | G155: 1 | H155: 6.226 | I155: умеренный | J155: 3.1. 3.2. 3.6. 3.18. 3.21. 27.1 28.5. 28.1.01. 28.8. 35.1. 35.2. 35.3 35.4. 35.5. 35.6. 35.7. 7.1. 28.1.02. 28.1.03. 24.1. 24.4. 27.2.
A156: 155 | B156: Эксплуатационный гидротехнический район 5 | C156: Делопроизводитель | D156: 0155 | E156: 18.02 | F156: 6.2 | G156: 1 | H156: 6.2 | I156: умеренный | J156: 3.1. 3.2. 3.6. 3.18. 3.21. 27.1 28.5. 28.1.01. 28.8. 35.1. 35.2. 35.3 35.4. 35.5. 35.6. 35.7. 7.1. 28.1.02. 28.1.03. 24.1. 27.2.
A157: 156 | B157: Эксплуатационный гидротехнический район 5 | C157: Заместитель начальника | D157: 0156 | E157: 18.03 | F157: 6.226 | G157: 1 | H157: 6.226 | I157: умеренный | J157: 3.1. 3.2. 3.6. 3.18. 3.21. 27.1 28.5. 28.1.01. 28.8. 35.1. 35.2. 35.3 35.4. 35.5. 35.6. 35.7. 7.1. 28.1.02. 28.1.03. 24.1. 24.4. 27.2.
A158: 157 | B158: Эксплуатационный гидротехнический район 5 | C158: Инженер по охране труда 2 категории | D158: 0157 | E158: 18.04 | F158: 6.2 | G158: 1 | H158: 6.2 | I158: умеренный | J158: 3.1. 3.2. 3.6. 3.18. 3.21. 27.1 28.5. 28.1.01. 28.8. 35.1. 35.2. 35.3 35.4. 35.5. 35.6. 35.7. 7.1. 28.1.02. 28.1.03. 24.1. 27.2.
A159: 158 | B159: Эксплуатационный гидротехнический район 5 | C159: Мастер | D159: 0158 | E159: 18.05 | F159: 6.361 | G159: 1 | H159: 6.361 | I159: умеренный | J159: 3.1. 3.2. 3.6. 3.18. 3.21. 27.1 12.1 28.5. 28.1.01. 21.1 29.1. 35.1. 35.2. 35.3 35.4. 35.5. 35.6. 35.7. 7.1. 28.1.02. 28.1.03. 24.1. 27.2.
A160: 159 | B160: Эксплуатационный гидротехнический район 5/Технический отдел | C160: Ведущий инженер | D160: 0159 | E160: 18.06 | F160: 6.226 | G160: 1 | H160: 6.226 | I160: умеренный | J160: 3.1. 3.2. 3.6. 3.18. 27.1 28.5. 28.1.01. 28.8. 29.1. 35.1. 35.2. 35.3 35.4. 35.5. 35.6. 35.7. 7.1. 28.1.02. 28.1.03. 24.1. 24.4. 27.2.
A161: 160 | B161: Эксплуатационный гидротехнический район 5/Технический отдел | C161: Инженер 1 категории | D161: 0160 | E161: 18.07 | F161: 6.2 | G161: 1.2 | H161: 7.44 | I161: умеренный | J161: 3.1. 3.2. 3.6. 3.18. 3.21. 27.1 28.5. 28.1.01. 28.8. 35.1. 35.2. 35.3 35.4. 35.5. 35.6. 35.7. 7.1. 28.1.02. 28.1.03. 24.1. 27.2.
A162: 161 | B162: Эксплуатационный гидротехнический район 5/Технический отдел | C162: Техник | D162: 0161 | E162: 18.08 | F162: 6.2 | G162: 1 | H162: 6.2 | I162: умеренный | J162: 3.1. 3.2. 3.6. 3.18. 3.21. 27.1 28.5. 28.1.01. 28.8. 35.1. 35.2. 35.3 35.4. 35.5. 35.6. 35.7. 7.1. 28.1.02. 28.1.03. 24.1. 27.2.
A163: 162 | B163: Управление очистных сооружений/Служба технологических работ/Участок №2 | C163: Оператор насосных станций 1 разряд | D163: 0162 | E163: 19.01 | F163: 6.258 | G163: 1 | H163: 6.258 | I163: умеренный | J163: 3.1. 3.2. 3.6. 3.18. 3.21. 27.1 28.5. 28.1.01. 21.1 35.1. 35.2. 35.3 35.4. 35.5. 35.6. 35.7. 7.1. 28.1.02. 28.1.03. 24.1. 27.2.
A164: 163 | B164: Эксплуатационный гидротехнический район 2/Снегосплавной пункт | C164: Диспетчер | D164: 0163 | E164: 20.01 | F164: 6.2 | G164: 1 | H164: 6.2 | I164: умеренный | J164: 3.1. 3.2. 3.6. 3.18. 3.21. 27.1 28.5. 28.1.01. 28.8. 35.1. 35.2. 35.3 35.4. 35.5. 35.6. 35.7. 7.1. 28.1.02. 28.1.03. 24.1. 27.2.
A165: 164 | B165: Эксплуатационный гидротехнический район 2/Снегосплавной пункт | C165: Мастер | D165: 0164 | E165: 20.02 | F165: 6.361 | G165: 1 | H165: 6.361 | I165: умеренный | J165: 3.1. 3.2. 3.6. 3.18. 3.21. 27.1 12.1 28.5. 28.1.01. 21.1 29.1. 35.1. 35.2. 35.3 35.4. 35.5. 35.6. 35.7. 7.1. 28.1.02. 28.1.03. 24.1. 27.2.
A166: 165 | B166: Эксплуатационный гидротехнический район 2/Снегосплавной пункт | C166: Машинист экскаватора-погрузчика 5 разряд | D166: 0165 | E166: 20.03 | F166: 6.231 | G166: 1 | H166: 6.231 | I166: умеренный | J166: 3.1. 3.2. 3.6. 3.18. 3.21. 27.1 9.8. 9.2. 28.5. 28.1.01. 35.1. 35.2. 35.3 35.4. 35.5. 35.6. 35.7. 7.1. 7.4. 7.2. 28.1.02. 28.1.03. 24.1. 27.2.
A167: 166 | B167: Эксплуатационный гидротехнический район 2/Снегосплавной пункт | C167: Начальник | D167: 0166 | E167: 20.04 | F167: 6.226 | G167: 1 | H167: 6.226 | I167: умеренный | J167: 3.1. 3.2. 3.6. 3.18. 3.21. 27.1 28.5. 28.1.01. 28.8. 35.1. 35.2. 35.3 35.4. 35.5. 35.6. 35.7. 7.1. 28.1.02. 28.1.03. 24.1. 24.4. 27.2.
A168: 167 | B168: Эксплуатационный гидротехнический район 2/Снегосплавной пункт | C168: Оператор теплосетевого оборудования | D168: 0167 | E168: 20.05 | F168: 6.235 | G168: 1 | H168: 6.235 | I168: умеренный | J168: 3.1. 3.2. 3.6. 3.18. 3.21. 27.1 16.3. 16.4. 9.8. 28.4. 28.5. 28.1.01. 21.1 35.1. 35.2. 35.3 35.4. 35.5. 35.6. 35.7. 7.1. 28.1.02. 28.1.03. 24.1. 27.2.
A169: 168 | B169: Эксплуатационный гидротехнический район 2/Снегосплавной пункт | C169: Слесарь аварийно-восстановительных работ 3 разряда | D169: 0168 | E169: 20.06 | F169: 6.387 | G169: 1,2 | H169: 7.6644 | I169: умеренный | J169: 3.1. 3.3. 3.2. 3.6. 3.7. 3.8. 22.1 3.17. 3.18. 3.21. 27.1 16.3. 16.4. 16.5 9.8. 9.2. 28.2. 28.4. 28.5. 28.1.01. 21.1 29.1. 35.1. 35.2. 35.3 35.4. 35.5. 35.6. 35.7. 7.1. 28.1.02. 28.1.03. 3.4. 9.1. 23.1. 24.1. 27.2.
A170: 169 | B170: Управление очистных сооружений/Служба технологических работ/Участок №1 | C170: Слесарь аварийно-восстановительных работ (3, 4, 5 разряда) | D170: 0169 | E170: 21.01 | F170: 6.387 | G170: 1,2 | H170: 7.6644 | I170: умеренный | J170: 3.1. 3.3. 3.2. 3.6. 3.7. 3.8. 22.1 3.17. 3.18. 3.21. 27.1 16.3. 16.4. 16.5 9.8. 9.2. 28.2. 28.4. 28.5. 28.1.01. 21.1 29.1. 35.1. 35.2. 35.3 35.4. 35.5. 35.6. 35.7. 7.1. 28.1.02. 28.1.03. 3.4. 9.1. 23.1. 24.1. 27.2.
A171: 170 | B171: Управление очистных сооружений/Служба технологических работ/Участок №1 | C171: Старший мастер | D171: 0170 | E171: 21.02 | F171: 6.27 | G171: 1 | H171: 6.27 | I171: умеренный | J171: 3.1. 3.2. 3.6. 3.17. 3.18. 3.21. 27.1 12.1 28.5. 28.1.01. 28.8. 21.1 29.1. 35.1. 35.2. 35.3 35.4. 35.5. 35.6. 35.7. 7.1. 28.1.02. 28.1.03. 24.1. 24.4. 27.2.
A172: 171 | B172: Управление очистных сооружений/Служба технологических работ/Участок №1 | C172: Техник | D172: 0171 | E172: 21.03 | F172: 6.2 | G172: 1 | H172: 6.2 | I172: умеренный | J172: 3.1. 3.2. 3.6. 3.18. 3.21. 27.1 28.5. 28.1.01. 28.8. 35.1. 35.2. 35.3 35.4. 35.5. 35.6. 35.7. 7.1. 28.1.02. 28.1.03. 24.1. 27.2.
A173: 172 | B173: Флот/Гидроузел | C173: Механик | D173: 0172 | E173: 21.04 | F173: 6.235 | G173: 1 | H173: 6.235 | I173: умеренный | J173: 3.1. 3.2. 3.6. 3.18. 3.21. 27.1 9.8. 9.2. 28.5. 28.1.01. 21.1 35.1. 35.2. 35.3 35.4. 35.5. 35.6. 35.7. 7.1. 28.1.02. 28.1.03. 24.1. 27.2.
A174: 173 | B174: Флот/Гидроузел | C174: Начальник | D174: 0173 | E174: 21.05 | F174: 6.226 | G174: 1 | H174: 6.226 | I174: умеренный | J174: 3.1. 3.2. 3.6. 3.18. 3.21. 27.1 28.5. 28.1.01. 28.8. 35.1. 35.2. 35.3 35.4. 35.5. 35.6. 35.7. 7.1. 28.1.02. 28.1.03. 24.1. 24.4. 27.2.
A175: 174 | B175: Флот/Гидроузел | C175: Уборщик производственных и служебных помещений | D175: 0174 | E175: 21.06 | F175: 6.302 | G175: 1 | H175: 6.302 | I175: умеренный | J175: 3.1. 3.2. 3.6. 3.21. 27.1 9.8. 9.3. 28.5. 35.1. 35.2. 35.3 35.4. 35.5. 35.6. 35.7. 7.1. 28.1.02. 28.1.03. 23.1. 24.1. 27.2.
A176: 175 | B176: Флот/Гидроузел | C176: Электромонтер по ремонту и обслуживанию электрооборудования (4, 5 разряда) | D176: 0175 | E176: 21.07 | F176: 6.413 | G176: 1 | H176: 6.413 | I176: умеренный | J176: 3.1. 3.2. 3.6. 3.21. 27.1 27.8. 27.5 27.4. 9.8. 9.2. 28.5. 28.1.01. 21.1 35.1. 35.2. 35.3 35.4. 35.5. 35.6. 35.7. 7.1. 28.1.02. 28.1.03. 23.1. 24.1. 27.2.
A177: 176 | B177: Флот/Гидроузел/Диспетчерский пункт | C177: Диспетчер | D177: 0176 | E177: 21.08 | F177: 6.2 | G177: 1 | H177: 6.2 | I177: умеренный | J177: 3.1. 3.2. 3.6. 3.18. 3.21. 27.1 28.5. 28.1.01. 28.8. 35.1. 35.2. 35.3 35.4. 35.5. 35.6. 35.7. 7.1. 28.1.02. 28.1.03. 24.1. 27.2.
A178: 177 | B178: Флот/Гидроузел/Диспетчерский пункт | C178: Старший диспетчер | D178: 0177 | E178: 21.09 | F178: 6.2 | G178: 1 | H178: 6.2 | I178: умеренный | J178: 3.1. 3.2. 3.6. 3.18. 3.21. 27.1 28.5. 28.1.01. 28.8. 35.1. 35.2. 35.3 35.4. 35.5. 35.6. 35.7. 7.1. 28.1.02. 28.1.03. 24.1. 27.2.
A179: 178 | B179: Первый отдел | C179: Начальник | D179: 0178 | E179: 22.001 | F179: 6.226 | G179: 1 | H179: 6.226 | I179: умеренный | J179: 3.1. 3.2. 3.6. 3.18. 3.21. 27.1 28.5. 28.1.01. 28.8. 35.1. 35.2. 35.3 35.4. 35.5. 35.6. 35.7. 7.1. 28.1.02. 28.1.03. 24.1. 24.4. 27.2.
A180: 179 | B180: Первый отдел | C180: Специалист по ведению секретного делопроизводства | D180: 0179 | E180: 22.002 | F180: 6.2 | G180: 1 | H180: 6.2 | I180: умеренный | J180: 3.1. 3.2. 3.6. 3.18. 3.21. 27.1 28.5. 28.1.01. 28.8. 35.1. 35.2. 35.3 35.4. 35.5. 35.6. 35.7. 7.1. 28.1.02. 28.1.03. 24.1. 27.2.
A181: 180 | B181: Производственное управление/Отдел эксплуатации ССП | C181: Начальник | D181: 0180 | E181: 22.003 | F181: 6.226 | G181: 1 | H181: 6.226 | I181: умеренный | J181: 3.1. 3.2. 3.6. 3.18. 3.21. 27.1 28.5. 28.1.01. 28.8. 35.1. 35.2. 35.3 35.4. 35.5. 35.6. 35.7. 7.1. 28.1.02. 28.1.03. 24.1. 24.4. 27.2.
A182: 181 | B182: Производственное управление/Производственный отдел | C182: Ведущий инженер | D182: 0181 | E182: 22.004 | F182: 6.226 | G182: 1 | H182: 6.226 | I182: умеренный | J182: 3.1. 3.2. 3.6. 3.18. 27.1 28.5. 28.1.01. 28.8. 29.1. 35.1. 35.2. 35.3 35.4. 35.5. 35.6. 35.7. 7.1. 28.1.02. 28.1.03. 24.1. 24.4. 27.2.
A183: 182 | B183: Производственное управление/Производственный отдел | C183: Заместитель начальника | D183: 0182 | E183: 22.005 | F183: 6.226 | G183: 1 | H183: 6.226 | I183: умеренный | J183: 3.1. 3.2. 3.6. 3.18. 3.21. 27.1 28.5. 28.1.01. 28.8. 35.1. 35.2. 35.3 35.4. 35.5. 35.6. 35.7. 7.1. 28.1.02. 28.1.03. 24.1. 24.4. 27.2.
A184: 183 | B184: Производственное управление/Производственный отдел | C184: Инженер 1 категории | D184: 0183 | E184: 22.006 | F184: 6.2 | G184: 1 | H184: 6.2 | I184: умеренный | J184: 3.1. 3.2. 3.6. 3.18. 3.21. 27.1 28.5. 28.1.01. 28.8. 35.1. 35.2. 35.3 35.4. 35.5. 35.6. 35.7. 7.1. 28.1.02. 28.1.03. 24.1. 27.2.
A185: 184 | B185: Производственное управление/Производственный отдел | C185: Специалист 1 категории | D185: 0184 | E185: 22.007 | F185: 6.2 | G185: 1 | H185: 6.2 | I185: умеренный | J185: 3.1. 3.2. 3.6. 3.18. 3.21. 27.1 28.5. 28.1.01. 28.8. 35.1. 35.2. 35.3 35.4. 35.5. 35.6. 35.7. 7.1. 28.1.02. 28.1.03. 24.1. 27.2.
A186: 185 | B186: Производственное управление/Руководство | C186: Делопроизводитель | D186: 0185 | E186: 22.008 | F186: 6.2 | G186: 1 | H186: 6.2 | I186: умеренный | J186: 3.1. 3.2. 3.6. 3.18. 3.21. 27.1 28.5. 28.1.01. 28.8. 35.1. 35.2. 35.3 35.4. 35.5. 35.6. 35.7. 7.1. 28.1.02. 28.1.03. 24.1. 27.2.
A187: 186 | B187: Производственное управление/Руководство | C187: Заместитель начальника | D187: 0186 | E187: 22.009 | F187: 6.226 | G187: 1 | H187: 6.226 | I187: умеренный | J187: 3.1. 3.2. 3.6. 3.18. 3.21. 27.1 28.5. 28.1.01. 28.8. 35.1. 35.2. 35.3 35.4. 35.5. 35.6. 35.7. 7.1. 28.1.02. 28.1.03. 24.1. 24.4. 27.2.
A188: 187 | B188: Производственное управление/Руководство | C188: Начальник | D188: 0187 | E188: 22.01 | F188: 6.226 | G188: 1 | H188: 6.226 | I188: умеренный | J188: 3.1. 3.2. 3.6. 3.18. 3.21. 27.1 28.5. 28.1.01. 28.8. 35.1. 35.2. 35.3 35.4. 35.5. 35.6. 35.7. 7.1. 28.1.02. 28.1.03. 24.1. 24.4. 27.2.
A189: 188 | B189: Производственное управление/Служба по надзору за техническим состоянием гидротехнических сооружений | C189: Ведущий инженер | D189: 0188 | E189: 22.011 | F189: 6.226 | G189: 1 | H189: 6.226 | I189: умеренный | J189: 3.1. 3.2. 3.6. 3.18. 27.1 28.5. 28.1.01. 28.8. 29.1. 35.1. 35.2. 35.3 35.4. 35.5. 35.6. 35.7. 7.1. 28.1.02. 28.1.03. 24.1. 24.4. 27.2.
A190: 189 | B190: Производственное управление/Служба по надзору за техническим состоянием гидротехнических сооружений | C190: Заместитель начальника | D190: 0189 | E190: 22.012 | F190: 6.226 | G190: 1 | H190: 6.226 | I190: умеренный | J190: 3.1. 3.2. 3.6. 3.18. 3.21. 27.1 28.5. 28.1.01. 28.8. 35.1. 35.2. 35.3 35.4. 35.5. 35.6. 35.7. 7.1. 28.1.02. 28.1.03. 24.1. 24.4. 27.2.
A191: 190 | B191: Производственное управление/Служба по надзору за техническим состоянием гидротехнических сооружений | C191: Инженер | D191: 0190 | E191: 22.013 | F191: 6.2 | G191: 1,2 | H191: 7.44 | I191: умеренный | J191: 3.1. 3.2. 3.6. 3.18. 3.21. 27.1 28.5. 28.1.01. 28.8. 35.1. 35.2. 35.3 35.4. 35.5. 35.6. 35.7. 7.1. 28.1.02. 28.1.03. 24.1. 27.2.
A192: 191 | B192: Производственное управление/Служба по надзору за техническим состоянием гидротехнических сооружений | C192: Начальник | D192: 0191 | E192: 22.014 | F192: 6.226 | G192: 1 | H192: 6.226 | I192: умеренный | J192: 3.1. 3.2. 3.6. 3.18. 3.21. 27.1 28.5. 28.1.01. 28.8. 35.1. 35.2. 35.3 35.4. 35.5. 35.6. 35.7. 7.1. 28.1.02. 28.1.03. 24.1. 24.4. 27.2.
A193: 192 | B193: Производственное управление/Служба по надзору за техническим состоянием гидротехнических сооружений | C193: Специалист 1 категории | D193: 0192 | E193: 22.015 | F193: 6.2 | G193: 1,2 | H193: 7.44 | I193: умеренный | J193: 3.1. 3.2. 3.6. 3.18. 3.21. 27.1 28.5. 28.1.01. 28.8. 35.1. 35.2. 35.3 35.4. 35.5. 35.6. 35.7. 7.1. 28.1.02. 28.1.03. 24.1. 27.2.
A194: 193 | B194: Производственное управление/Центральная диспетчерская служба | C194: Диспетчер | D194: 0193 | E194: 22.016 | F194: 6.2 | G194: 1 | H194: 6.2 | I194: умеренный | J194: 3.1. 3.2. 3.6. 3.18. 3.21. 27.1 28.5. 28.1.01. 28.8. 35.1. 35.2. 35.3 35.4. 35.5. 35.6. 35.7. 7.1. 28.1.02. 28.1.03. 24.1. 27.2.
A195: 194 | B195: Производственное управление/Центральная диспетчерская служба | C195: Заместитель начальника | D195: 0194 | E195: 22.017 | F195: 6.226 | G195: 1 | H195: 6.226 | I195: умеренный | J195: 3.1. 3.2. 3.6. 3.18. 3.21. 27.1 28.5. 28.1.01. 28.8. 35.1. 35.2. 35.3 35.4. 35.5. 35.6. 35.7. 7.1. 28.1.02. 28.1.03. 24.1. 24.4. 27.2.
A196: 195 | B196: Производственное управление/Центральная диспетчерская служба | C196: Начальник смены | D196: 0195 | E196: 22.018 | F196: 6.226 | G196: 1 | H196: 6.226 | I196: умеренный | J196: 3.1. 3.2. 3.6. 3.18. 3.21. 27.1 28.5. 28.1.01. 28.8. 35.1. 35.2. 35.3 35.4. 35.5. 35.6. 35.7. 7.1. 28.1.02. 28.1.03. 24.1. 24.4. 27.2.
A197: 196 | B197: Техническое управление/Отдел по регистрации имущественных прав | C197: Главный специалист | D197: 0196 | E197: 22.019 | F197: 6.2 | G197: 1 | H197: 6.2 | I197: умеренный | J197: 3.1. 3.2. 3.6. 3.18. 3.21. 27.1 28.5. 28.1.01. 28.8. 35.1. 35.2. 35.3 35.4. 35.5. 35.6. 35.7. 7.1. 28.1.02. 28.1.03. 24.1. 27.2.
A198: 197 | B198: Техническое управление/Отдел по регистрации имущественных прав | C198: Заместитель начальника | D198: 0197 | E198: 22.02 | F198: 6.226 | G198: 1 | H198: =F:F*G:G -> 6.226 | I198: умеренный | J198: 3.1. 3.2. 3.6. 3.18. 3.21. 27.1 28.5. 28.1.01. 28.8. 35.1. 35.2. 35.3 35.4. 35.5. 35.6. 35.7. 7.1. 28.1.02. 28.1.03. 24.1. 24.4. 27.2.
A199: 198 | B199: Техническое управление/Отдел по регистрации имущественных прав | C199: Начальник | D199: 0198 | E199: 22.021 | F199: 6.226 | G199: 1 | H199: 6.226 | I199: умеренный | J199: 3.1. 3.2. 3.6. 3.18. 3.21. 27.1 28.5. 28.1.01. 28.8. 35.1. 35.2. 35.3 35.4. 35.5. 35.6. 35.7. 7.1. 28.1.02. 28.1.03. 24.1. 24.4. 27.2.
A200: 199 | B200: Техническое управление/Отдел по регистрации имущественных прав/Группа паспорта имущественного комплекса | C200: Ведущий инженер | D200: 0199 | E200: 22.022 | F200: 6.226 | G200: 1 | H200: 6.226 | I200: умеренный | J200: 3.1. 3.2. 3.6. 3.18. 27.1 28.5. 28.1.01. 28.8. 29.1. 35.1. 35.2. 35.3 35.4. 35.5. 35.6. 35.7. 7.1. 28.1.02. 28.1.03. 24.1. 24.4. 27.2.
... 998 more rows
